Cogmind - Beta 14 @@@ ROGUE MODE // 2025.05.01 @ 23:24:38 Player: deadnoob Result: Heading to fleet! Performance ------------- Evolutions (9) 4500 Regions Visited (38) 7600 Robots Destroyed (834) 4170 Value Destroyed (40920) 40920 Prototype IDs (127) 2540 Alien Tech Used (14) 2800 Bonus (33983) 33983 TOTAL SCORE: 96513 Bonus ------- Triggered High Security 1000 High Alert Combat Kills 20139 Follower Combat Kills 2282 Network Hubs Disabled 600 Aligned with FarCom 300 Met Data Miner 300 Met Imprinter 300 Destroyed Z-Imprinter 1000 Triggered Deep Caves Wall 500 Exposed GOLEM Chamber 500 Met Zhirov 300 Built Enhanced Grunts 300 Met R17 at Cetus 500 Used Core Reset Matrix 3000 Met R17 at Research 2000 Scanned by Researcher 500 Met Architect 300 Destroyed A8 300 Win 3000 Friendly Fire -3138 Cogmind --------- Core Integrity 647/1600 Matter 57/425 Energy 683/1850 System Corruption 15% Temperature Cool (10) Movement Treading (150) Location To Fleet Rendezvous Parts ------- > --- POWER (4) -------- Quantum Reactor > --- PROPULSION (6) --- Centrium Heavy Treads Biometal Heavy Treads Biometal Heavy Treads > --- UTILITY (12) ----- Huge Storage Unit Advanced Energy Well (fused) Assembled Biocell Array Spectral Analyzer Assembled Combat Suite Experimental Core Analyzer Quantum Capacitor Assembled Alloy Armor GOLEM Unit > --- WEAPON (3) ------- Potential Cannon Cooled Nova Cannon > --- INVENTORY (25) --- Experimental Biometal Heavy Treads Zionite Biocell (600) Long-range Sensor Array Experimental Transmission Jammer Experimental EM Disruption Field Advanced Force Field Long-range Tractor Beam Spacefold Activator Heavy Proton Cannon Compact HERF Cannon Light Antimatter Cannon Micro-nuke Launcher AD-0RF's Magmablaster Powered Hammer Sigix Broadsword Peak State ------------ > --- POWER ------------ Quantum Reactor Quantum Reactor Quantum Reactor Improved Quantum Reactor > --- PROPULSION ------- Centrium Heavy Treads Biometal Heavy Treads Biometal Heavy Treads > --- UTILITY ---------- Huge Storage Unit Assembled Biocell Array Spectral Analyzer Assembled Combat Suite Quantum Capacitor Assembled Alloy Armor Heavy Regenerative Plating Advanced Force Field GOLEM Unit > --- WEAPON ----------- Cooled Nova Cannon Sigix Broadsword > --- INVENTORY -------- Quantum Reactor Biometal Heavy Treads Biometal Heavy Treads Experimental Biometal Heavy Treads Impulse Thruster Array Advanced Energy Well Zionite Biocell Long-range Sensor Array Experimental Transmission Jammer Experimental EM Disruption Field Advanced Force Field Long-range Tractor Beam Transdimensional Reconstructor Transdimensional Reconstructor Subatomic Replicator Spacefold Activator Compact HERF Cannon Potential Cannon Micro-nuke Launcher AD-0RF's Magmablaster [Rating: 245] Favorites ----------- Power Assembled Flux Generator Engine Improved Deuterium Engine Power Core Light Fission Core Reactor Assembled Flux Generator Propulsion Assembled Alloy Leg Treads Light Treads Leg Assembled Alloy Leg Wheel Armored Wheel Hover Unit Gravmag System Flight Unit Cooled Nuclear Pulse Thruster Utility Huge Storage Unit Device GOLEM Unit Storage Huge Storage Unit Processor Core Analyzer Hackware Improved Hacking Suite Protection Assembled Alloy Armor Artifact Spacefold Activator Weapon Assembled Focal Cannon Energy Gun EM Pulse Gun Energy Cannon Assembled Focal Cannon Ballistic Gun Enhanced Autogun Ballistic Cannon Light Cannon Launcher Rocket Launcher Special Weapon AD-0RF's Magmablaster Impact Weapon Hammer Slashing Weapon Sigix Broadsword Piercing Weapon Spear Special Melee Weapon Datajack Build | -11 -10 -10 -9 -9 -9 -8 -8 -7 -7 -7 -7 -7 -7 -6 -6 -6 -6 -6 -6 -5 -5 -5 -5 -5 -5 -4 -4 -4 -4 -3 -3 -3 -2 -2 -2 -1 -1 -1 ------- Run | Yrd Mat Min Mat Min Exi Min Mat Fac Was Fac Low Low Dat Pro Fac Low Low Zio Dee Pro Fac Ext Cet Arc Hub Fac Upp Upp Zhi Pro Res Tes Res Qua Sec Acc Com Ac0 Slots Evolved 18 | . . . 2 . . . 2 2 . . . . . . 2 . . . . . 2 . . . . 2 . . . . 2 . 2 . . 2 . . Power 3 | . . . . . . . . . . . . . . . 1 . . . . . . . . . . . . . . . 1 . . . . 1 . . Propulsion 4 | . . . 1 . . . . 1 . . . . . . . . . . . . . . . . . . . . . . . . 2 . . . . . Utility 10 | . . . 1 . . . 2 1 . . . . . . 1 . . . . . 2 . . . . 1 . . . . 1 . . . . 1 . . Weapon 1 | . . . . . . . . . . . . . . . . . . . . . . . . . . 1 . . . . . . . . . . . . Parts Attached 900 | 7 13 5 54 18 32 21 36 14 21 88 17 14 2 24 46 17 12 18 41 6 11 5 10 9 13 16 4 3 13 3 15 41 44 23 73 50 51 10 Power 52 | . . . 4 . 2 2 3 1 2 7 2 . . 1 6 1 2 1 3 . . . . . . . . . 1 . 1 . . 1 2 7 3 . Engine 23 | . . . 4 . 2 1 1 1 . 5 2 . . . 4 . 1 1 1 . . . . . . . . . . . . . . . . . . . Core 8 | . . . . . . 1 2 . . . . . . . 2 1 1 . 1 . . . . . . . . . . . . . . . . . . . Reactor 21 | . . . . . . . . . 2 2 . . . 1 . . . . 1 . . . . . . . . . 1 . 1 . . 1 2 7 3 . Propulsion 118 | 2 . 3 11 3 5 6 4 3 5 17 1 4 . 2 5 8 2 1 3 2 1 2 4 . . . . . 2 . 1 3 1 . 8 6 3 . Treads 85 | 2 . 2 11 3 4 4 4 3 5 8 1 2 . 1 1 1 . . 3 2 1 2 4 . . . . . 1 . . 2 1 . 8 6 3 . Leg 10 | . . . . . . . . . . 4 . 1 . 1 1 1 . . . . . . . . . . . . . . 1 1 . . . . . . Wheel 21 | . . 1 . . 1 2 . . . 4 . 1 . . 3 6 2 1 . . . . . . . . . . . . . . . . . . . . Hover 1 | . . . . . . . . . . 1 . . . . . . . . . . . . . . . . . . . . . . . . . . . . Flight 1 | . . . . . . . . . . . . . . . . . . . . . . . . . . . . . 1 . . . . . . . . . Utility 421 | 2 2 . 12 6 6 6 12 3 7 34 7 3 . 6 25 5 4 5 24 3 8 3 5 9 13 16 4 2 10 3 6 29 35 18 43 21 22 2 Device 258 | 2 . . 6 3 5 5 6 3 4 12 3 2 . 3 16 4 3 1 12 1 4 . 2 4 9 11 3 1 9 3 4 15 29 14 34 7 17 1 Storage 17 | . 2 . . . . . . . . 4 . . . 1 1 . . . 1 . 1 . . . . 1 . . . . 1 1 . . . 2 2 . Processor 18 | . . . 1 . . . 2 . . 6 . . . . 1 . . 1 . . . . 1 . 1 . . . . . . . 1 . . 3 . 1 Hackware 14 | . . . . . . . . . . . . . . . 3 . . 2 . . . 2 . 2 . 3 . . . . . . . . 1 1 . . Protection 112 | . . . 5 3 1 1 4 . 3 12 4 1 . 2 4 1 1 1 11 2 3 1 2 3 3 1 1 1 1 . 1 13 5 4 6 8 3 . Artifact 2 | . . . . . . . . . . . . . . . . . . . . . . . . . . . . . . . . . . . 2 . . . Weapon 309 | 3 11 2 27 9 19 7 17 7 7 30 7 7 2 15 10 3 4 11 11 1 2 . 1 . . . . 1 . . 7 9 8 4 20 16 23 8 Energy Gun 17 | 2 2 . 1 . 1 . . . . . . 1 . 1 1 . . 4 4 . . . . . . . . . . . . . . . . . . . Energy Cannon 109 | . . . . . . . 3 . . 10 1 . . 3 6 2 3 4 4 . 1 . 1 . . . . . . . 6 8 8 3 18 12 11 5 Ballistic Gun 72 | 1 5 . 8 5 12 5 9 3 3 13 3 2 . 2 . . . 1 . . . . . . . . . . . . . . . . . . . . Ballistic Cannon 14 | . 3 1 9 . . . . . . . . . . . . . . . . . . . . . . . . . . . . . . . . . . 1 Launcher 43 | . . . 9 4 3 . 3 . 2 1 1 2 1 1 2 1 . . 2 1 1 . . . . . . 1 . . 1 1 . . . . 6 . Special Weapon 17 | . . . . . . . . . 2 . . 1 1 4 . . . 1 . . . . . . . . . . . . . . . . 1 3 3 1 Impact Weapon 2 | . 1 1 . . . . . . . . . . . . . . . . . . . . . . . . . . . . . . . . . . . . Slashing Weapon 15 | . . . . . . 1 2 4 . . . . . . . . . . 1 . . . . . . . . . . . . . . 1 1 1 3 1 Piercing Weapon 13 | . . . . . . . . . . 6 2 1 . 4 . . . . . . . . . . . . . . . . . . . . . . . . Special Melee Weapon 7 | . . . . . 3 1 . . . . . . . . 1 . 1 1 . . . . . . . . . . . . . . . . . . . . Unidentified Prototypes 43 | . . . 2 . . . . . . 2 . . . 3 1 . . . 6 . 1 . 2 . 3 . . . 5 . . 8 . 2 4 . . 4 Corrupted Parts 12 | . . . . . . . . . 2 1 . . . 5 . . . 1 . . . 1 1 . . . . . . . . 1 . . . . . . System Corruption 61 | . . . . . . . . . 8 10 . . . 25 . . . 5 . . . 5 1 . . . . . . . . 7 . . . . . . Parts Lost 90 | . 1 1 3 6 5 3 . . 5 17 3 2 . 7 4 3 7 . 4 . 1 . . . 1 . . . . . 3 . . . 1 2 10 1 Power 10 | . . . . . . 1 . . . 1 . . . . 1 1 1 . . . . . . . . . . . . . . . . . . . 4 1 Propulsion 28 | . . 1 1 1 3 2 . . . 5 2 2 . 3 1 1 3 . 1 . . . . . . . . . . . . . . . . . 2 . Utility 29 | . . . 2 4 . . . . 1 7 1 . . 1 . . 2 . 2 . 1 . . . . . . . . . 1 . . . 1 2 4 . Weapon 23 | . 1 . . 1 2 . . . 4 4 . . . 3 2 1 1 . 1 . . . . . 1 . . . . . 2 . . . . . . . Highest Loss Streak 7 | . 1 1 1 5 5 3 . . 5 4 3 1 . 4 3 1 7 . 1 . 1 . . . 1 . . . . . 2 . . . 1 1 6 1 To Critical Strikes 4 | . . . . . 4 . . . . . . . . . . . . . . . . . . . . . . . . . . . . . . . . . Average Slot Usage (%) 85 | . 100 100 99 99 99 80 81 83 70 84 85 86 93 79 96 98 74 82 88 85 87 87 82 78 81 84 83 83 80 83 80 79 81 80 75 72 71 67 Engine 3 | . 14 14 11 11 11 4 . 3 1 3 7 7 7 6 3 6 5 6 2 . . . . . . . . . . . . . . . . . . . Core 1 | . . . . . . 6 8 3 . . . . . . 2 6 5 6 3 . . . . . . . . . . . . . . . . . . . Reactor 4 | . . . . . . . . . 4 3 . . . . 5 . . . 2 6 5 5 5 5 5 5 5 5 5 5 9 8 8 8 10 15 13 7 Treads 12 | . 28 16 32 32 32 13 9 14 13 19 24 16 15 8 2 6 1 . 11 12 11 10 5 5 5 5 5 5 4 5 4 3 8 8 11 11 11 12 Leg 4 | . . . . . . . . . . 3 . 3 7 2 10 10 . . 5 13 11 11 11 9 11 10 9 10 9 10 9 8 8 8 2 . . . Wheel 2 | . . 11 . . . 9 9 7 1 2 . 1 7 7 12 5 6 13 7 . . . . . . . . . . . . . . . . . . . Device 15 | . 14 14 8 11 14 6 . 7 15 11 7 10 15 10 19 19 19 19 13 13 23 18 22 24 23 17 20 20 18 20 21 19 17 17 18 11 17 18 Storage 9 | . 14 14 11 11 11 11 9 7 3 6 7 7 7 7 6 6 6 6 8 13 10 11 11 11 11 10 10 10 10 10 9 9 8 8 8 7 8 12 Processor 4 | . . . 7 . . . 18 15 7 5 15 15 15 9 9 13 13 13 7 . . . . . . . . . . . . . 3 4 4 7 4 5 Hackware 2 | . . . . . . . . . . . . . . . . . . . . . . 6 . . . 10 10 10 10 10 7 4 4 4 2 . . . Protection 7 | . . . 6 10 7 8 8 6 7 10 7 7 7 6 7 6 5 6 10 12 10 8 9 8 10 8 5 5 4 4 3 8 7 7 5 9 7 4 Energy Cannon 7 | . . . . . . . 6 2 . 1 . . . . 11 13 4 5 9 12 10 11 11 8 11 15 15 14 15 14 13 13 12 9 3 7 5 3 Ballistic Gun 2 | . 10 . 9 5 7 19 11 7 9 8 7 6 . . . . . . . . . . . . . . . . . . . . . . . . . . Ballistic Cannon 1 | . 10 27 11 . . . . . . . . . . . . . . . . . . . . . . . . . . . . . . . . . . . Launcher 1 | . . . . 16 8 . . . . . . . . . . . . . . . . . . . . . . . . . . . . . . . . . Peak Build Rating 245 | 9 8 10 20 20 45 48 73 75 100 82 49 46 43 59 78 75 71 61 124 126 141 130 151 155 156 171 171 167 172 172 183 196 212 219 225 236 245 228 Average Rating 112 | 7 7 9 15 17 23 41 60 70 77 54 44 42 41 38 72 71 53 57 85 118 130 128 145 144 151 165 162 162 159 163 179 185 204 210 216 226 235 220 On Entrance 104 | 6 7 8 10 20 17 31 43 61 75 82 49 44 43 43 58 68 69 54 61 119 118 129 128 151 150 156 163 163 163 164 164 183 188 207 215 217 234 221 Naked Turns 17 | . . . . . . . . . 17 . . . . . . . . . . . . . . . . . . . . . . . . . . . . . Heaviest Build 245 | 15 92 92 104 102 110 114 116 120 113 83 57 54 44 63 150 135 129 132 173 170 173 173 172 172 173 188 183 183 183 183 204 209 214 209 205 230 245 210 Greatest Support 260 | 40 40 40 60 60 60 60 28 28 140 140 112 84 10 10 22 48 28 40 60 60 80 60 80 80 60 60 80 80 60 60 80 130 160 160 245 255 260 240 Greatest Overweight (x) 48 | . 2 5 5 1 9 10 4 4 4 5 . 4 4 6 13 44 10 4 48 2 2 2 2 5 2 3 3 3 3 3 6 6 3 3 3 1 1 . Average Overweight (x) 2 | . . 4 1 1 1 2 3 3 . . . . 3 3 5 11 8 3 3 2 1 2 2 2 2 2 2 2 2 2 2 2 1 2 . . . . Largest Inventory Capacity 25 | 8 25 25 25 25 25 25 25 25 25 15 15 15 15 15 25 25 25 25 25 25 25 25 25 25 25 25 25 25 25 25 25 25 25 25 25 25 25 25 Average Capacity 23 | 8 15 25 25 25 25 25 25 25 14 10 15 15 15 15 21 25 25 25 25 25 24 25 25 25 25 25 25 25 25 25 25 25 25 25 25 25 25 25 Most Carried 25 | 6 15 25 25 25 25 25 25 25 25 15 15 15 15 15 25 25 25 25 25 25 25 25 25 25 25 25 25 25 25 25 25 25 25 25 25 25 25 17 Average Carried 22 | 4 11 19 24 23 20 24 24 24 14 9 14 14 15 14 19 23 22 24 23 24 22 24 24 24 24 24 24 24 24 24 24 24 24 24 24 24 23 15 Final Capacity 25 | 8 25 25 25 25 25 25 25 25 5 15 15 15 15 15 25 25 25 25 25 25 25 25 25 25 25 25 25 25 25 25 25 25 25 25 25 25 25 25 Final Carried 25 | 4 15 25 25 25 25 25 25 25 5 15 15 15 15 15 23 24 23 24 25 25 25 25 25 25 25 25 25 25 25 25 25 25 24 25 24 25 15 17 Class Distribution -------------------- 25% | Scavenger-Mutant 24% | Mutant 15% | Hacker-Golem 13% | Golem 5% | Generator-Gunner 5% | Commander-Golem 3% | Generator-Tank Dominant Class ---------------- Mutant | -10/Materials Mutant | -10/Mines Mutant | -9/Materials Scavenger-Mutant | -9/Mines Scavenger-Mutant | -9/Exiles Scavenger-Mutant | -8/Mines Scavenger-Mutant | -8/Materials Scavenger-Mutant | -7/Factory Scavenger-Mutant | -7/Waste Mutant | -7/Factory Mutant | -7/Lower Caves Mutant | -7/Lower Caves Mutant | -7/Data Miner Mutant | -6/Proximity Caves Scavenger-Mutant | -6/Factory Mutant | -6/Lower Caves Mutant | -6/Lower Caves Mutant | -6/Zion Golem | -6/Deep Caves Golem | -5/Proximity Caves Golem | -5/Factory Commander-Golem | -5/Extension Commander-Golem | -5/Cetus Commander-Golem | -5/Archives Golem | -5/Hub_04(d) Hacker-Golem | -4/Factory Hacker-Golem | -4/Upper Caves Hacker-Golem | -4/Upper Caves Hacker-Golem | -4/Zhirov Hacker-Golem | -3/Proximity Caves Hacker-Golem | -3/Research Golem | -3/Testing Scavenger-Gunner | -2/Research Scavenger-Gunner | -2/Quarantine Scavenger-Mutant | -2/Section 7 Generator-Gunner | -1/Access Alien-Mutant | -1/Command Alien-Mutant | -1/Access_0 Resources | -11 -10 -10 -9 -9 -9 -8 -8 -7 -7 -7 -7 -7 -7 -6 -6 -6 -6 -6 -6 -5 -5 -5 -5 -5 -5 -4 -4 -4 -4 -3 -3 -3 -2 -2 -2 -1 -1 -1 ----------- Run | Yrd Mat Min Mat Min Exi Min Mat Fac Was Fac Low Low Dat Pro Fac Low Low Zio Dee Pro Fac Ext Cet Arc Hub Fac Upp Upp Zhi Pro Res Tes Res Qua Sec Acc Com Ac0 Matter Collected 15839 | 315 444 152 1282 384 1384 503 771 327 528 2539 421 267 . 316 475 263 95 67 705 59 209 58 140 154 141 174 40 86 100 70 143 450 395 255 738 370 1019 . Remotely 1431 | . . . . . . . . . . . . . . . . . . . . . . . . . . . . . . . . 95 67 . 230 50 989 . Salvage Created 44706 | 158 574 140 1389 292 614 368 1115 530 1741 3083 248 354 . 236 773 686 360 266 880 752 741 1063 271 318 1247 770 759 135 326 675 1323 2133 1895 994 3089 8719 5672 17 Parts 1876 | 19 46 9 117 13 65 20 67 28 39 164 14 16 . 12 35 29 6 7 17 44 23 39 10 25 58 33 28 1 3 33 56 105 107 57 121 256 154 . Haulers Intercepted 18 | . 2 . 6 . . . 3 1 . 3 . . . . 1 . . . . . 1 . . . . . . . . . 1 . . . . . . . Recyclers Shooed 17 | 1 1 . 2 1 . . . . . 5 . . . . 1 . . . . . . . . . . . . . . . . . . . . 2 4 . Parts Field Recycled . | . . . . . . . . . . . . . . . . . . . . . . . . . . . . . . . . . . . . . . . Retrieved Matter . | . . . . . . . . . . . . . . . . . . . . . . . . . . . . . . . . . . . . . . . Parts Self-Destructed 167 | . . . . . . . . . . . 12 12 . 9 . 28 5 . . 38 . . . . . . 27 1 2 33 . . . . . . . . Prevented 2 | . . . . . . . . . . . . . . . . . . . . . . . . . . . 2 . . . . . . . . . . . Kills | -11 -10 -10 -9 -9 -9 -8 -8 -7 -7 -7 -7 -7 -7 -6 -6 -6 -6 -6 -6 -5 -5 -5 -5 -5 -5 -4 -4 -4 -4 -3 -3 -3 -2 -2 -2 -1 -1 -1 ------- Run | Yrd Mat Min Mat Min Exi Min Mat Fac Was Fac Low Low Dat Pro Fac Low Low Zio Dee Pro Fac Ext Cet Arc Hub Fac Upp Upp Zhi Pro Res Tes Res Qua Sec Acc Com Ac0 Combat Hostiles Destroyed 718 | . 10 4 45 15 4 2 18 5 6 37 7 7 . 5 15 12 . . 45 18 12 15 2 1 19 10 10 4 . 15 20 27 21 10 34 142 118 3 Melee 8 | . . . . . . . . . . 8 . . . . . . . . . . . . . . . . . . . . . . . . . . . . Guns 73 | . 4 . 9 4 1 2 12 5 5 24 3 3 . . . . . . 1 . . . . . . . . . . . . . . . . . . . Cannons 297 | . 6 4 17 . . . 3 . 1 4 . . . . 9 11 . . 2 14 7 15 2 1 19 10 10 1 . 15 15 21 16 9 19 36 30 . AOE 260 | . . . 19 11 3 . 3 . . . 4 4 . 4 6 1 . . 39 4 5 . . . . . . 3 . . 3 . . . . 77 72 2 Classes Destroyed 37 | 2 5 2 4 2 2 1 . 1 1 . 1 1 . 1 . . 1 1 2 . . . . . . . . . . . 2 1 1 1 1 3 1 . Worker 50 | . . . 2 1 . 2 1 1 . 13 . . . . . . . . . . . . . . 2 1 . . . . . . . . 4 4 19 . Builder 42 | . 1 . . . . . 1 2 . 8 . . . . . . . . . . . . . . . 1 . . . . 1 . . 1 . 27 . . Tunneler 11 | 5 . . 2 . . . . . . 3 . . . . 1 . . . . . . . . . . . . . . . . . . . . . . . Hauler 18 | . 2 . 6 . . . 3 1 . 3 . . . . 1 . . . . . 1 . . . . . . . . . 1 . . . . . . . Recycler 32 | 1 . 1 . . . 2 1 2 . 9 . . . . 1 . . . . . . . . . . . . . . . . 1 2 1 . 7 4 . Carrier 10 | . . . . . . . . . . . . . . . . . . . . . . . . . . . . . . . . . . . . 7 3 . Minesweeper 1 | . . . . . . . . . . . 1 . . . . . . . . . . . . . . . . . . . . . . . . . . . Mechanic 21 | . . . 1 . . . . . . 1 . . . . . . . . . . 1 1 . . . . . . . . . . . . . 10 7 . Operator 12 | . 1 . . . . . . . . . . . . . . . . . . . 1 1 . 7 1 . . . . . . . 1 . . . . . Turret 1 | . . . . . 1 . . . . . . . . . . . . . . . . . . . . . . . . . . . . . . . . . Watcher 29 | . 2 . 5 . . . 4 1 . 2 . . . . 2 . . . . . . . . . 1 1 . . . . 1 3 . 2 . . 5 . Swarmer 79 | . . 2 15 4 . . 4 . . 1 5 4 . 4 7 . . . . 9 . . . . 5 . . . . . 8 5 . . . 1 5 . Saboteur 13 | . . . . . . . . . . . . . . . . . . . . . . . . . . . . . . . . . . . . 9 4 . Grunt 265 | . 10 . 19 4 . . 7 2 . 21 1 . . . 6 5 . . . 6 9 11 . . 2 5 5 4 . 3 6 6 3 3 14 61 52 . Brawler 20 | . . . 1 1 . . 1 . . . . . . . . . . . . . . . . . . . . . . . . . 1 . . 9 7 . Duelist 29 | . . . . 1 . . . 1 . . . . . . . 2 . . . 1 . 2 . . . . 1 . . 1 . . . . . 11 9 . Protector 21 | . . . 1 . . . . . . . . . . . . . . . . . . . . . 1 . . . . . . . . . . 12 7 . Researcher 3 | . . . . . . . . . . . . . . . . . . . . . . . . . . . . . . . . 2 . . 1 . . . Sentry 39 | . . 2 9 . . . 5 1 . 4 1 . . . . 2 . . . 1 . 2 . 1 1 1 1 . . . 1 . 1 . 4 1 1 . Demolisher 4 | . . . . . . . . . . . . . . . . . . . . . . . . . . . . . . . 2 . . . . 2 . . Specialist 5 | . . . . . . . . . . . . . . . . . . . . . . . . . . . . . . . . . 4 . 1 . . . Hunter 36 | . . . . . . 1 1 . . 3 . 2 . . . 2 . . . . 3 . . . . . 2 . . 4 2 2 . . . 6 8 . Programmer 81 | . . . . . . . . 1 . 8 . 1 . . 2 1 . . . . . . . . 4 4 . . . . . 14 12 6 11 8 9 . Heavy 1 | . . . . . . . . . . . . . . . . . . . . . . . . . . . . . . . . . . . 1 . . . Q-Series 5 | . . . . . . . . . . . . . . . . . . . . . . . . . . . . . . . . . . 1 . 4 . . Behemoth 4 | . . . . . . . . . . . . . . 1 . . . . . 1 . . . . . . 1 . . . . . . . . . 1 . Compactor 6 | . . . . . . . . . 6 . . . . . . . . . . . . . . . . . . . . . . . . . . . . . Cetus Guard 2 | . . . . . . . . . . . . . . . . . . . . . . . 2 . . . . . . . . . . . . . . . S7 Guard 3 | . . . . . . . . . . . . . . . . . . . . . . . . . . . . . . . . . . . 3 . . . Enhanced Grunt 3 | . . . . . . . . . . . . . . 1 . . . . . . . . . . . . . . . . . . . . . . . 2 Lightning 6 | . . . . . . . . . . . . . . . . . . . . . . . . . 6 . . . . . . . . . . . . . Investigator 2 | . . . . . . . . . . . . . . . . . . . . . . . . . . . . . . . . . . . . 1 1 . Striker 15 | . . . . . . . . . . . . . . . . . . . . . . . . . . . . . . . 1 . . . . 8 6 . Executioner 17 | . . . . . . . . . . . . . . . . . . . . . . . . . . . . . . . . . . . . 10 7 . Alpha 7 2 | . . . . . . . . . . . . . . . . . . . . . . . . . . . . . . . . . . . . . 2 . Zionite 8 | . . . . . 8 . . . . . . . . . . . . . . . . . . . . . . . . . . . . . . . . . Z-Technician 5 | . . . . . . . . . . . . . . . . . . . 5 . . . . . . . . . . . . . . . . . . . Decomposer 1 | . . . . . . . . . . . 1 . . . . . . . . . . . . . . . . . . . . . . . . . . . Packrat 3 | . . . . . . . . . . . . . . . . . 3 . . . . . . . . . . . . . . . . . . . . . Samaritan 3 | . . . . . . . . . . . . . . . . . 3 . . . . . . . . . . . . . . . . . . . . . Tinkerer 2 | . . . . . . . . . . . . 1 . 1 . . . . . . . . . . . . . . . . . . . . . . . . Assembler 2 | . . . . . . . . . . . . . . . . . . . 2 . . . . . . . . . . . . . . . . . . . Assembled 54 | . . . . 5 3 . . . . . . . . . . . . . 39 . . . . . . . . . . 7 . . . . . . . . Golem 5 | . . . . . . . . . . . . . . . . . . . 5 . . . . . . . . . . . . . . . . . . . Thug 1 | . . . . . . . . . . . . . . . . . . 1 . . . . . . . . . . . . . . . . . . . . Butcher 2 | . . . . . . . . . . . . . . . . . . 2 . . . . . . . . . . . . . . . . . . . . Guerrilla 1 | . . . . . . . . . . . . . . . . . . . . . . . 1 . . . . . . . . . . . . . . . Fireman 3 | . . . . . . . . . . . . . . . . . . 2 1 . . . . . . . . . . . . . . . . . . . Best Kill Streak 41 | 2 2 2 11 5 4 4 6 4 4 6 4 4 . 4 5 5 . . 41 4 7 3 2 2 5 3 2 4 . 5 7 10 4 4 19 24 30 3 Combat Bots Only 39 | . 2 1 8 4 3 1 5 2 4 5 4 4 . 4 4 5 . . 39 4 5 3 2 1 5 3 2 4 . 5 7 7 4 4 16 20 25 3 Max Kills in Single Turn 31 | 1 1 1 5 3 2 1 2 1 1 4 4 2 . 2 2 1 1 1 31 3 5 1 1 1 1 1 1 2 . 1 2 1 1 1 2 4 5 1 Gunslinging . | . . . . . . . . . . . . . . . . . . . . . . . . . . . . . . . . . . . . . . . Exploded 31 | . . . 4 2 1 . 1 . . . 4 2 . 2 2 1 . . 31 3 4 . . . . . . 2 . . 2 . . . . 3 4 1 Melee 1 | . . . . . . . . . . 1 . . . . . . . . . . . . . . . . . . . . . . . . . . . . Uniques/NPCs Destroyed 8 | . . . . . 4 1 . . . . . . . . . . . . 1 . . . 1 . . . . . . . . . . . . . . 1 8R-AWN (-9/Exiles) EX-DEC (-9/Exiles) EX-BIN (-9/Exiles) EX-HEX (-9/Exiles) AD-0RF (-8/Mines) Z-Imprinter (-6/Deep Caves) A7 (-5/Cetus) A8 (-1/Access_0) Combat | -11 -10 -10 -9 -9 -9 -8 -8 -7 -7 -7 -7 -7 -7 -6 -6 -6 -6 -6 -6 -5 -5 -5 -5 -5 -5 -4 -4 -4 -4 -3 -3 -3 -2 -2 -2 -1 -1 -1 -------- Run | Yrd Mat Min Mat Min Exi Min Mat Fac Was Fac Low Low Dat Pro Fac Low Low Zio Dee Pro Fac Ext Cet Arc Hub Fac Upp Upp Zhi Pro Res Tes Res Qua Sec Acc Com Ac0 Hostile Shots Fired 3989 | . 41 16 134 45 69 98 54 67 5 515 146 40 . 85 127 101 53 . 54 103 37 43 14 3 113 49 45 34 . 66 144 165 96 78 283 270 699 97 Missed 1111 | . 12 2 37 10 16 11 11 21 . 117 43 11 . 39 41 27 12 . 12 33 15 13 7 . 20 21 16 7 . 24 50 62 29 23 74 69 188 38 Damage Taken 39221 | 14 392 199 1118 626 741 1086 557 416 391 5825 904 392 . 579 893 1110 703 63 1051 1172 343 420 211 64 1774 453 559 455 . 597 2072 1093 727 425 1860 2676 6419 841 Core 3301 | 7 112 67 76 12 72 64 79 21 16 244 74 28 . 95 44 177 175 23 108 127 27 25 . . 173 49 . 52 . . 293 83 46 41 154 171 431 135 Absorbed by Shields 11497 | . . . 100 56 233 128 . 157 22 274 . . . . 395 264 102 65 116 . . 99 . . . . . . . . . . . 441 1198 2029 4950 868 Reduced by Siege Mode 1394 | . . . . . . . . . 97 179 . . . . . . . . . . . . . . 34 10 32 19 . 9 48 20 18 . 63 319 546 . Redirected to Shielding 330 | . . . . 1 2 . . . . . . . . . . . . . . . . . . . . . . . . . . . . . 37 216 74 . Ignored by Resistances 11815 | . . . . . . . . . . . . . . 16 . . . . 221 232 70 100 43 13 1454 154 117 96 . 131 340 1145 1098 452 2257 942 2586 348 Regen/Repaired (Parts) 5028 | . . . . . . . 434 . . . . . . . 121 . . 109 . . . . . . . . . . . . . 764 . 183 1340 766 1105 206 Core Remaining (%) 59 | 97 . 25 . . . 44 85 . . . . . . 31 . . . . . 23 . . . . 77 . . . . 91 . 71 . . 72 . . 40 Volleys Fired 2561 | 48 44 8 99 28 81 24 69 35 30 196 16 23 . 18 63 53 13 16 87 67 36 51 31 26 86 34 25 8 9 25 81 152 149 78 204 290 223 35 Largest 3 | 2 2 2 2 2 2 2 2 2 2 2 2 2 . 2 2 2 1 1 2 2 2 2 2 2 2 3 3 2 1 3 3 1 2 2 1 2 2 2 Hottest 294 | 80 80 70 70 53 78 60 93 93 220 123 98 91 . 220 188 175 90 69 140 50 50 50 69 50 50 75 75 50 25 75 119 94 200 175 220 250 294 250 Shots Fired 3512 | 52 83 17 185 44 157 48 131 66 52 340 28 31 . 21 99 86 13 16 113 111 51 98 37 34 131 83 64 10 9 63 101 152 150 79 204 291 226 36 Gun 974 | 52 56 . 60 30 152 48 87 61 47 296 26 29 . 6 . . . 14 10 . . . . . . . . . . . . . . . . . . . Cannon 2363 | . 27 17 112 . . . 37 5 . 44 1 . . 9 96 86 13 2 87 108 48 98 37 34 131 83 64 6 9 63 99 152 150 79 201 272 168 25 Launcher 138 | . . . 13 14 5 . 7 . 4 . 1 2 . 3 3 . . . 16 3 3 . . . . . . 4 . . 2 . . . . . 48 10 Special 37 | . . . . . . . . . 1 . . . . 3 . . . . . . . . . . . . . . . . . . . . 3 19 10 1 Kinetic 1042 | 45 43 17 172 30 148 48 87 61 47 296 26 19 . 3 . . . . . . . . . . . . . . . . . . . . . . . . Thermal 1945 | . . . . . . . 37 5 1 44 1 10 . 7 96 86 9 . 76 108 48 98 30 34 131 83 64 6 9 63 70 123 130 67 129 242 112 26 Explosive 138 | . . . 13 14 5 . 7 . 4 . 1 2 . 3 3 . . . 16 3 3 . . . . . . 4 . . 2 . . . . . 48 10 Electromagnetic 387 | 7 40 . . . 4 . . . . . . . . 8 . . 4 16 21 . . . 7 . . . . . . . 29 29 20 12 75 49 66 . Robot Hit Streak 47 | 11 6 12 25 9 17 6 21 26 20 15 5 9 . 7 18 24 10 9 22 14 28 37 18 13 21 16 23 21 6 17 15 42 23 22 24 47 46 9 Robot Miss Streak 5 | 4 3 1 3 2 4 3 3 5 2 4 4 2 . 1 2 1 1 2 3 4 1 2 1 2 1 3 1 1 1 1 3 2 1 3 2 3 3 2 Penetration Max 2 | . . . . . 2 1 1 . 1 . . . . . . . . . . . . . . . . . . . . . . . . . . . . . Secondary Targets 13 | . . . 2 1 1 . 1 . 2 6 . . . . . . . . . . . . . . . . . . . . . . . . . . . . Max Gunslinging Chain 1 | . . . 1 1 1 . 1 . 1 1 . . . . . . . . . . . . . . . . . . . . . . . . . . . . Capacitor 1054 | . . . . . . . . . . . . . . . . . . . . . . . . . . . . . . . 55 152 145 77 200 262 140 23 Shots Hit Robots 2246 | 32 55 12 133 22 102 31 86 54 41 272 16 23 . 17 49 54 13 12 64 61 28 79 18 27 84 48 45 6 7 36 49 85 82 35 137 160 148 23 Core Hits 1580 | 12 25 7 81 25 41 13 52 18 14 103 12 17 . 10 26 23 8 18 99 27 24 34 12 11 34 24 19 13 6 21 34 35 31 19 54 219 333 26 Critical Kills 34 | . 1 . . . 5 1 1 . 5 3 . . . . 1 . . . . . . . . . . . . . . . . . . 2 2 10 3 . Critical Parts Destroyed 23 | . . . 1 1 13 2 2 2 . 2 . . . . . . . . . . . . . . . . . . . . . . . . . . . . Critical Strikes 93 | . 3 . 7 1 19 7 3 2 16 12 . . . . 1 . . . . . . . . . . . . . . . 1 2 1 2 3 10 3 . Meltdown 19 | . . . . . . . . . . 1 . . . . 1 . . . . . . . . . . . . . . . . . . 2 2 10 3 . Destroy 54 | . 1 . 1 1 19 7 3 2 16 4 . . . . . . . . . . . . . . . . . . . . . . . . . . . . Blast 8 | . 2 . 6 . . . . . . . . . . . . . . . . . . . . . . . . . . . . . . . . . . . Corrupt 5 | . . . . . . . . . . . . . . . . . . . . . . . . . . . . . . . 1 2 1 . 1 . . . Impale 7 | . . . . . . . . . . 7 . . . . . . . . . . . . . . . . . . . . . . . . . . . . Melee Attacks 225 | . 8 2 . . 8 1 5 20 . 153 7 4 . 4 . . 1 . 6 . . . . . . . . . . . . . . . 5 . 1 . Impact 10 | . 8 2 . . . . . . . . . . . . . . . . . . . . . . . . . . . . . . . . . . . . Slashing 37 | . . . . . . . 5 20 . . . . . . . . . . 6 . . . . . . . . . . . . . . . 5 . 1 . Piercing 168 | . . . . . . . . . . 153 7 4 . 4 . . . . . . . . . . . . . . . . . . . . . . . . Sneak Attacks 44 | . 1 . . . 4 . . 7 . 27 2 . . 1 . . . . . . . . . . . . . . . . . . . . 1 . 1 . Combat Hostiles . | . . . . . . . . . . . . . . . . . . . . . . . . . . . . . . . . . . . . . . . Follow-up Attacks . | . . . . . . . . . . . . . . . . . . . . . . . . . . . . . . . . . . . . . . . Damage Inflicted 158452 | 324 934 221 3709 1106 1848 575 1949 1509 1047 7350 671 963 . 718 2341 1914 453 737 5657 3103 1959 3648 614 1507 4116 2324 2104 807 263 1897 2732 4364 3901 1617 6137 43781 36552 3000 Guns 11203 | 293 518 . 727 295 1694 544 1096 820 685 3539 249 358 . 66 . . . 247 72 . . . . . . . . . . . . . . . . . . . Cannons 72225 | . 271 215 1371 . . . 506 84 . 452 . . . 156 1708 1833 453 . 1517 2720 1213 3648 614 1507 4074 2269 2104 124 263 1897 2252 4364 3899 1617 5760 16132 8180 1022 Explosions 68695 | 31 62 . 1598 788 154 . 335 . 348 529 309 362 . 292 633 81 . 490 3714 383 746 . . . . 55 . 683 . . 480 . . . . 26883 27800 1939 Melee 4612 | . 78 . . . . . . 605 . 2760 113 243 . 92 . . . . 354 . . . . . . . . . . . . . . . 263 . 104 . Ramming 235 | . 5 6 13 23 . 31 12 . . 70 . . . . . . . . . . . . . . 42 . . . . . . . 2 . . . 31 . Kinetic 12133 | 214 407 215 2098 295 1691 544 1096 820 685 3539 249 250 . 30 . . . . . . . . . . . . . . . . . . . . . . . . Thermal 98144 | 31 62 . . . . . 506 84 14 452 . 108 . 179 1800 1914 300 490 1236 2720 1213 3648 552 1507 4074 2269 2104 124 263 1897 1447 3259 3335 1199 3536 42135 14451 1235 Explosive 32672 | . . . 1598 788 154 . 335 . 348 529 309 362 . 292 541 . . . 3714 383 746 . . . . . . 683 . . 480 . . . . . 19645 1765 Electromagnetic 10656 | 79 382 . . . 3 . . . . . . . . 125 . . 153 247 353 . . . 62 . . 55 . . . . 805 1105 564 418 2338 1646 2321 . Impact 78 | . 78 . . . . . . . . . . . . . . . . . . . . . . . . . . . . . . . . . . . . . Slashing 1326 | . . . . . . . . 605 . . . . . . . . . . 354 . . . . . . . . . . . . . . . 263 . 104 . Piercing 3208 | . . . . . . . . . . 2760 113 243 . 92 . . . . . . . . . . . . . . . . . . . . . . . . Highest Corruption 78 | . 2 2 . . . . . 1 36 67 53 53 53 78 2 . . 5 . . . 5 6 6 14 . . . . . . 13 4 1 6 . 15 15 Average Corruption 27 | . 2 2 . . . . . 1 21 55 53 53 53 53 1 . . 5 . . . 5 5 4 9 . . . . . . 3 2 1 4 . 7 15 Corruption Purged 38 | . . . . . . . . . . 20 . . . . 2 . . . . . . . . 6 . . . . . . . . 4 . 6 . . . Corruption Blocked 8 | . . . . . . . . . . . . . . . . . . . . . . . 8 . . . . . . . . . . . . . . . Effects 737 | . 3 11 . . . . . 1 24 343 55 55 6 39 3 . . . . . . 19 25 7 28 . . . . . . 49 4 5 25 . 29 6 Message Errors 153 | . . 2 . . . . . 1 3 71 10 10 . 7 1 . . . . . . 8 6 1 6 . . . . . . 14 2 . 5 . 6 . Matter Fused 168 | . . 3 . . . . . . 5 80 9 7 1 13 1 . . . . . . 3 7 5 4 . . . . . . 12 . 2 5 . 9 2 Heat Flow Errors 91 | . 2 3 . . . . . . 1 44 5 5 1 9 . . . . . . . 2 1 . 8 . . . . . . 6 . . . . 3 1 Energy Discharges 74 | . . 1 . . . . . . 6 29 8 7 . 1 . . . . . . . . 2 . 1 . . . . . . 8 1 2 4 . 3 1 Parts Rejected 16 | . . . . . . . . . 1 6 1 2 . . . . . . . . . . 1 . 1 . . . . . . . . . 2 . 2 . Parts Fused 9 | . . . . . . . . . . 4 1 1 . 2 . . . . . . . . . . . . . . . . . . . . . . 1 . Data Loss (minor) 87 | . 1 . . . . . . . 1 33 9 10 3 5 . . . . . . . 3 6 1 1 . . . . . . 4 1 1 4 . 3 1 Data Loss (major) 29 | . . 1 . . . . . . 2 14 1 2 . . . . . . . . . 1 . . 2 . . . . . . 4 . . 2 . . . Misfires 24 | . . 1 . . . . . . 1 12 3 2 . . 1 . . . . . . 2 . . 1 . . . . . . . . . 1 . . . Alerts 23 | . . . . . . . . . 2 8 2 3 1 1 . . . . . . . . 1 . 1 . . . . . . 1 . . 1 . 1 1 Misdirections 14 | . . . . . . . . . . 12 2 . . . . . . . . . . . . . . . . . . . . . . . . . . . Weapon Failures 49 | . . . . . . . . . 2 30 4 6 . 1 . . . . . . . . 1 . 3 . . . . . . . . . 1 . 1 . Overload Shots 9 | . . . . . . . . . . . . . . . . . . . . . . . . . . . . . . . . . . 1 1 . 4 3 Overflow Damage 9801 | 1 22 . 60 34 . . 35 250 . 610 14 53 . . 41 49 61 15 344 138 83 68 . 113 244 45 36 . 27 89 98 307 75 72 238 4640 1873 66 Projectiles 5436 | . . . 7 . . . 23 . . 13 . . . . 16 49 61 . 180 138 74 68 . 113 244 45 36 . 27 89 93 307 75 72 238 2726 742 . Explosions 3518 | 1 . . 53 34 . . 12 . . 128 14 7 . . 25 . . 15 110 . 9 . . . . . . . . . 5 . . . . 1914 1125 66 Melee 847 | . 22 . . . . . . 250 . 469 . 46 . . . . . . 54 . . . . . . . . . . . . . . . . . 6 . Knockbacks 12 | . 1 . 9 . . . . . . 1 . . . . . . . . . . . . . . . . . . . . . . . . . . 1 . Impact 2 | . . . . . . . . . . 1 . . . . . . . . . . . . . . . . . . . . . . . . . . 1 . Kinetic 10 | . 1 . 9 . . . . . . . . . . . . . . . . . . . . . . . . . . . . . . . . . . . Secondary . | . . . . . . . . . . . . . . . . . . . . . . . . . . . . . . . . . . . . . . . Self-Inflicted Damage 1863 | 15 14 3 22 51 43 12 . . 194 499 39 . . 28 . 67 . 128 97 . . . . . . . . . . . . . . . . 41 480 130 Shots 44 | 1 1 . 2 3 2 . . . 4 7 1 . . 1 . 1 . 3 3 . . . . . . . . . . . . . . . . 1 10 4 Rammed 27 | . 2 1 4 4 . 1 3 . . 9 . . . . . . . . . . . . . . 1 . . . . . . . 1 . . . 1 . Targets Rammed 33 | . 2 1 4 4 . 2 3 . . 12 . . . . . . . . . . . . . . 3 . . . . . . . 1 . . . 1 . Kicked 2 | . . . . . . . . . . . . . . . . . . . . . . . . . 2 . . . . . . . . . . . . . Crushed 4 | . . . . . . 1 . . . 3 . . . . . . . . . . . . . . . . . . . . . . . . . . . . Highest Temperature 387 | 36 271 257 106 16 59 292 316 214 177 282 247 253 134 366 364 255 284 . 347 284 21 124 162 4 257 38 11 19 . 23 232 387 339 274 358 198 198 178 Average Temperature 138 | 18 62 75 28 5 15 113 70 81 58 90 59 79 82 103 90 61 68 . 96 42 8 32 33 4 94 11 6 11 . 8 81 129 131 69 111 181 130 74 Received Heat Transfer 8983 | . 213 54 419 54 . 1269 171 100 . 1737 225 . . 410 199 251 730 . 151 586 126 197 45 9 171 200 102 159 . 66 206 45 27 32 418 219 392 . Effects 15 | . . . . . . 1 1 . . 3 . 1 . . 3 . . . 1 . . . . . . . . . . . . 1 . . 4 . . . Shutdowns 1 | . . . . . . . . . . . . . . . 1 . . . . . . . . . . . . . . . . . . . . . . . Energy Bleed 7 | . . . . . . 1 1 . . 1 . 1 . . 1 . . . . . . . . . . . . . . . . 1 . . 1 . . . Interference 6 | . . . . . . . . . . 2 . . . . . . . . 1 . . . . . . . . . . . . . . . 3 . . . Damage (minor) 1 | . . . . . . . . . . . . . . . 1 . . . . . . . . . . . . . . . . . . . . . . . Siege Activations 66 | . . . . . . . . . 1 10 . . . . . . . . . . . . . . 6 2 7 1 . 3 2 4 7 2 11 7 3 . Total Turns 3445 | . . . . . . . . . 23 184 . . . . . . . . . . . . . . 142 36 58 17 . 27 21 84 133 16 165 2016 523 . Longest Duration 1284 | . . . . . . . . . 23 40 . . . . . . . . . . . . . . 47 21 14 17 . 11 16 37 74 13 50 1284 420 . Robots Corrupted 45 | . . . . . . . . . . . . . . 1 . . . . 3 . . . . . . . . . . . 2 8 5 . 12 7 7 . Combat Hostiles 42 | . . . . . . . . . . . . . . . . . . . 3 . . . . . . . . . . . 2 6 5 . 12 7 7 . Parts Fried 71 | . . . . . . . . . . . . . . 1 . . . . . . . 1 . . 4 . 1 . . . 4 13 2 . 20 13 12 . Impact Corruptions 2 | . 1 . . . . . . . . . . . . . . . . . . . . . . . . . . . . . . . . . . . 1 . Robots Melted 51 | . . . . . . . . . . 1 . . . 1 1 . . . . . . . . . . . . . . . . . . 2 4 32 9 1 Combat Hostiles 37 | . . . . . . . . . . . . . . 1 . . . . . . . . . . . . . . . . . . . 1 3 22 9 1 Parts Melted 144 | . 1 . . . . . . . . 6 . . . 2 4 2 . . . . 1 2 1 1 6 4 1 . . . 1 6 4 9 19 61 13 . Heat Transferred 77028 | 50 100 . . . . . 888 148 80 650 . 222 . 764 1450 1295 . 650 345 1475 675 2037 300 750 2074 1275 1125 75 118 975 675 1756 1724 841 3310 37623 13062 516 Parts Sabotaged . | . . . . . . . . . . . . . . . . . . . . . . . . . . . . . . . . . . . . . . . Parts Stolen . | . . . . . . . . . . . . . . . . . . . . . . . . . . . . . . . . . . . . . . . Parts Stripped . | . . . . . . . . . . . . . . . . . . . . . . . . . . . . . . . . . . . . . . . Power Chain Reactions 10 | 1 2 . . . . . . . . . . . . . 1 1 . 3 . . . . . . . . . . . . . . . . . 1 1 . Alert | -11 -10 -10 -9 -9 -9 -8 -8 -7 -7 -7 -7 -7 -7 -6 -6 -6 -6 -6 -6 -5 -5 -5 -5 -5 -5 -4 -4 -4 -4 -3 -3 -3 -2 -2 -2 -1 -1 -1 ------- Run | Yrd Mat Min Mat Min Exi Min Mat Fac Was Fac Low Low Dat Pro Fac Low Low Zio Dee Pro Fac Ext Cet Arc Hub Fac Upp Upp Zhi Pro Res Tes Res Qua Sec Acc Com Ac0 Peak Influence 6263 | 30 150 81 944 606 . 30 285 166 73 837 . . . . 180 . . . . . 497 1082 717 413 430 355 . . . . 455 337 370 495 1009 4470 6263 . Initial 2860 | . 19 17 23 346 . . . 7 58 . . . . . 40 . . . . . 81 242 585 218 81 210 . . . . . 186 143 207 126 512 2860 . Average 831 | 16 74 34 516 338 . 16 87 63 30 333 . . . . 94 . . . . . 174 590 606 311 207 198 . . . . 233 119 234 289 728 3403 4515 . Maximum Alert Level 5 | . . . 3 2 . . 1 . . 3 . . . . . . . . . . 2 3 3 2 2 1 . . . . 2 1 1 2 3 5 5 . Low Security (%) 37 | 100 100 100 23 . . 100 87 100 100 28 . . . . 100 . . . . . 69 . . . 37 45 . . . . 31 70 39 7 8 . . . Level 1 25 | . . . 12 66 . . 12 . . 38 . . . . . . . . . . 9 30 . 63 60 54 . . . . 64 29 60 86 4 . . . Level 2 13 | . . . 26 33 . . . . . 22 . . . . . . . . . . 20 41 81 35 2 . . . . . 4 . . 5 21 8 . . Level 3 8 | . . . 38 . . . . . . 10 . . . . . . . . . . . 27 18 . . . . . . . . . . . 65 3 . . Level 4 1 | . . . . . . . . . . . . . . . . . . . . . . . . . . . . . . . . . . . . 10 . . Level 5 . | . . . . . . . . . . . . . . . . . . . . . . . . . . . . . . . . . . . . . 27 . High Security 12 | . . . . . . . . . . . . . . . . . . . . . . . . . . . . . . . . . . . . 77 72 . Max Security . | . . . . . . . . . . . . . . . . . . . . . . . . . . . . . . . . . . . . . . . Sterilizations 1 | . . . . . . . . . . . . . . . . . . . . . . . . . . . . . . . . . . . . 1 . . Squads Dispatched 148 | . 3 . 5 1 . . 1 2 . 14 . . . . 6 . . . . . 4 3 . . 3 5 . . . . 7 6 6 5 9 33 35 . Investigation 19 | . 3 . 2 1 . . 1 . . 2 . . . . 3 . . . . . . . . . . 2 . . . . 4 . . 1 . . . . Extermination 33 | . . . . . . . . . . 7 . . . . 2 . . . . . . . . . 2 2 . . . . . 4 4 4 5 2 1 . Reinforcement 24 | . . . 2 . . . . . . 4 . . . . 1 . . . . . 2 1 . . 1 1 . . . . 3 2 2 . 3 1 1 . Assault 70 | . . . 1 . . . . . . 1 . . . . . . . . . . 2 2 . . . . . . . . . . . . 1 30 33 . Garrison 2 | . . . . . . . . 2 . . . . . . . . . . . . . . . . . . . . . . . . . . . . . . Intercept . | . . . . . . . . . . . . . . . . . . . . . . . . . . . . . . . . . . . . . . . Searches Triggered . | . . . . . . . . . . . . . . . . . . . . . . . . . . . . . . . . . . . . . . . Data Miner Redirects 3 | . . . . . . . . . . . . . . . . . . . . . 1 . . . . 1 . . . . . . . . . . 1 . Construction Impeded 4 | . . . . . . . . . . . . . . . 1 . . . . . . 1 . . . 1 . . . . . . . . . 1 . . Haulers Reinforced 4 | . . . . . . . . . . 1 . . . . . . . . . . 1 . . . 1 . . . . . 1 . . . . . . . Active Scanning Responses . | . . . . . . . . . . . . . . . . . . . . . . . . . . . . . . . . . . . . . . . Cargo Convoy Interrupts . | . . . . . . . . . . . . . . . . . . . . . . . . . . . . . . . . . . . . . . . Stealth | -11 -10 -10 -9 -9 -9 -8 -8 -7 -7 -7 -7 -7 -7 -6 -6 -6 -6 -6 -6 -5 -5 -5 -5 -5 -5 -4 -4 -4 -4 -3 -3 -3 -2 -2 -2 -1 -1 -1 --------- Run | Yrd Mat Min Mat Min Exi Min Mat Fac Was Fac Low Low Dat Pro Fac Low Low Zio Dee Pro Fac Ext Cet Arc Hub Fac Upp Upp Zhi Pro Res Tes Res Qua Sec Acc Com Ac0 Distress Signals 36 | . 1 . 9 . . . 2 . . 2 . . . . . . . . . . 2 2 2 . 2 . . . . . 7 1 1 1 1 . 3 . Communications Jammed 226 | . . . . . . . . . . 31 . . . . . . . . . . 20 7 43 . 35 2 . . . . 9 6 5 10 52 6 . . Distress Signals 220 | . . . . . . . . . . 30 . . . . . . . . . . 19 7 43 . 34 2 . . . . 8 6 5 10 50 6 . . Times Spotted 1061 | . 20 6 58 16 19 2 29 11 6 63 14 7 . 6 22 13 2 . 46 18 15 48 10 11 34 17 10 4 . 14 38 34 25 15 51 192 176 9 Peak Tracking Total 37 | . 4 3 6 4 9 1 5 3 2 6 5 4 . 4 4 4 1 . 37 4 6 6 5 2 6 4 2 4 . 3 7 8 4 6 8 18 23 4 Tactical Retreats 51 | . 2 3 4 . 8 . 2 . . 4 5 . . . . 1 . . . 1 . 6 . . . . 1 . . . 5 . 1 2 4 1 1 . Traps | -11 -10 -10 -9 -9 -9 -8 -8 -7 -7 -7 -7 -7 -7 -6 -6 -6 -6 -6 -6 -5 -5 -5 -5 -5 -5 -4 -4 -4 -4 -3 -3 -3 -2 -2 -2 -1 -1 -1 ------- Run | Yrd Mat Min Mat Min Exi Min Mat Fac Was Fac Low Low Dat Pro Fac Low Low Zio Dee Pro Fac Ext Cet Arc Hub Fac Upp Upp Zhi Pro Res Tes Res Qua Sec Acc Com Ac0 Traps Triggered 18 | . 1 . . . . . . 2 . 3 . . . . 1 . . . . . 2 . . . . 1 . . . . 1 2 . . . 5 . . Indirectly 1 | . . . . . . . . . . . . . . . . . . . . . . . . . . 1 . . . . . . . . . . . . Trap Hack Attempts . | . . . . . . . . . . . . . . . . . . . . . . . . . . . . . . . . . . . . . . . Triggered . | . . . . . . . . . . . . . . . . . . . . . . . . . . . . . . . . . . . . . . . Disarmed . | . . . . . . . . . . . . . . . . . . . . . . . . . . . . . . . . . . . . . . . Reprogrammed . | . . . . . . . . . . . . . . . . . . . . . . . . . . . . . . . . . . . . . . . Reused 4 | . . 4 . . . . . . . . . . . . . . . . . . . . . . . . . . . . . . . . . . . . Traps Extracted . | . . . . . . . . . . . . . . . . . . . . . . . . . . . . . . . . . . . . . . . Installed 4 | . . 4 . . . . . . . . . . . . . . . . . . . . . . . . . . . . . . . . . . . . Triggered 12 | . . 4 . . . . . . . . . . . . . 7 . . . . . . . . . . 1 . . . . . . . . . . . Most Traps Carried 4 | . . 4 . . . . . . . . 3 . . . . . . . . . . . . . . . . . . . . . . . . . . . Machines | -11 -10 -10 -9 -9 -9 -8 -8 -7 -7 -7 -7 -7 -7 -6 -6 -6 -6 -6 -6 -5 -5 -5 -5 -5 -5 -4 -4 -4 -4 -3 -3 -3 -2 -2 -2 -1 -1 -1 ---------- Run | Yrd Mat Min Mat Min Exi Min Mat Fac Was Fac Low Low Dat Pro Fac Low Low Zio Dee Pro Fac Ext Cet Arc Hub Fac Upp Upp Zhi Pro Res Tes Res Qua Sec Acc Com Ac0 Machines Disabled 107 | . 1 . 1 4 18 . 2 . . 18 . 1 . . 2 . . 4 3 . 2 4 . 2 3 9 . . 1 . 2 5 3 7 6 4 4 1 Max in Single Turn 5 | . 1 . 1 4 3 . 1 . . 5 . 1 . . 1 . . 1 1 . 1 1 . . 1 3 . . 1 . 1 1 2 1 1 1 1 1 Garrison Access 14 | . . . . . . . . 1 . 1 . . . . 1 . . . . . 1 . . . 1 2 . . . . 1 1 . . 1 4 . . Network Hub 3 | . . . . . . . . . . . . . . . . . . . . . . . . . 3 . . . . . . . . . . . . . Machines Repaired . | . . . . . . . . . . . . . . . . . . . . . . . . . . . . . . . . . . . . . . . Machines Dismantled . | . . . . . . . . . . . . . . . . . . . . . . . . . . . . . . . . . . . . . . . Machines Sabotaged 1 | . . . . . . . . . . . . . . . . . . . . . . . . . . 1 . . . . . . . . . . . . Overloaded Fab Kills . | . . . . . . . . . . . . . . . . . . . . . . . . . . . . . . . . . . . . . . . Hacking | -11 -10 -10 -9 -9 -9 -8 -8 -7 -7 -7 -7 -7 -7 -6 -6 -6 -6 -6 -6 -5 -5 -5 -5 -5 -5 -4 -4 -4 -4 -3 -3 -3 -2 -2 -2 -1 -1 -1 --------- Run | Yrd Mat Min Mat Min Exi Min Mat Fac Was Fac Low Low Dat Pro Fac Low Low Zio Dee Pro Fac Ext Cet Arc Hub Fac Upp Upp Zhi Pro Res Tes Res Qua Sec Acc Com Ac0 Machines Accessed 126 | . 9 . 12 2 2 1 9 3 . 14 2 . 3 . 8 1 . . . . 1 9 . . 4 11 . . 5 1 5 11 3 4 5 1 . . Terminals 68 | . 7 . 10 1 . 1 5 . . 7 . . . . 4 . . . . . . 9 . . 3 3 . . . 1 1 7 3 3 3 . . . Fabricators 9 | . . . . . . . . . . 2 . . . . 2 . . . . . 1 . . . . 4 . . . . . . . . . . . . Repair Stations 12 | . . . . . . . 1 2 . 2 . . . . 1 . . . . . . . . . . 1 . . . . 1 2 . 1 1 . . . Recycling Units 8 | . 2 . 1 . . . 2 . . 2 . . . . . . . . . . . . . . . 1 . . . . . . . . . . . . Scanalyzers 5 | . . . 1 . . . 1 . . . . . . . . . . . . . . . . . . . . . . . 2 1 . . . . . . Garrison Access 10 | . . . . . . . . 1 . 1 . . . . 1 . . . . . . . . . 1 2 . . . . 1 1 . . 1 1 . . Total Hacks 417 | . 23 . 34 2 2 5 35 5 . 29 4 . 22 . 21 1 . . . . 2 20 . . 13 33 . . 18 1 19 74 13 25 11 5 . . Successful 218 | . 14 . 18 1 2 1 22 1 . 5 4 . 22 . 10 1 . . . . 2 9 . . 6 21 . . 18 1 7 31 6 9 6 1 . . Failed 196 | . 8 . 15 1 . 4 13 4 . 24 . . . . 11 . . . . . . 11 . . 7 11 . . . . 12 43 7 16 5 4 . . Catastrophic 39 | . 1 . 1 . . . 1 1 . 7 . . . . 4 . . . . . . 2 . . 4 1 . . . . 1 8 1 4 1 2 . . Database Lockouts 3 | . 1 . 1 . . . . . . . . . . . . . . . . . . . . . . 1 . . . . . . . . . . . . Manual 162 | . 6 . 19 3 1 5 10 . . 10 . . . . 10 . . . . . 1 20 1 . 6 13 . . . . 2 42 6 7 . . . . Terminals 236 | . 20 . 25 1 . 5 15 . . 11 . . . . 10 . . . . . . 20 . . 11 13 . . . 1 7 60 13 19 5 . . . Fabricators 20 | . . . . . . . . . . 5 . . . . 5 . . . . . 2 . . . . 8 . . . . . . . . . . . . Repair Stations 47 | . . . . . . . 7 2 . 7 . . . . 3 . . . . . . . . . . 3 . . . . 6 11 . 6 2 . . . Recycling Units 18 | . 3 . 1 . . . 2 . . 5 . . . . . . . . . . . . . . . 7 . . . . . . . . . . . . Scanalyzers 26 | . . . 8 . . . 11 . . . . . . . . . . . . . . . . . . . . . . . 5 2 . . . . . . Garrison Access 22 | . . . . . . . . 3 . 1 . . . . 3 . . . . . . . . . 2 2 . . . . 1 1 . . 4 5 . . Terminal Hacks 126 | . 12 . 10 1 2 1 7 . . 1 4 . 22 . 2 1 . . . . . 2 . . 3 6 . . 18 1 3 15 6 6 3 . . . Record 16 | . 1 . 1 . 1 . . . . . 3 . 2 . . . . . . . . . . . . . . . 6 1 . . . 1 . . . . Part Schematic 18 | . . . 1 . . . . . . . . . 11 . 1 . . . . . . 1 . . . . . . 4 . . . . . . . . . Robot Schematic 7 | . . . 1 . . . . . . . . . 6 . . . . . . . . . . . . . . . . . . . . . . . . . Robot Analysis 11 | . 2 . 1 . . 1 2 . . . . . . . . . . . . . . . . . . 1 . . 4 . . . . . . . . . Prototype ID Bank 11 | . 2 . 1 . . . 1 . . . . . 3 . . . . . . . . . . . . . . . 4 . . . . . . . . . Open Door 6 | . . . . 1 . . . . . . 1 . . . . 1 . . . . . . . . . . . . . . . . . . 3 . . . Level Access Points 1 | . . . . . . . . . . . . . . . . . . . . . . . . . . . . . . . 1 . . . . . . . Branch Access Points 4 | . . . . . . . . . . 1 . . . . 1 . . . . . . . . . . 1 . . . . . . 1 . . . . . Emergency Access Points 3 | . 2 . 1 . . . . . . . . . . . . . . . . . . . . . . . . . . . . . . . . . . . Terminal Index 3 | . . . . . . . . . . . . . . . . . . . . . . . . . . . . . . . 1 1 1 . . . . . Recycling Unit Index 1 | . . . . . . . . . . . . . . . . . . . . . . . . . . . . . . . . . . 1 . . . . Garrison Index 1 | . . . . . . . . . . . . . . . . . . . . . . . . . . 1 . . . . . . . . . . . . Alert Level 7 | . . . 2 . . . . . . . . . . . . . . . . . . . . . 1 1 . . . . . 1 1 1 . . . . Unreport Threat 10 | . . . 1 . . . 1 . . . . . . . . . . . . . . 1 . . 1 1 . . . . . 3 1 1 . . . . Locate Traps 4 | . 1 . . . . . . . . . . . . . . . . . . . . . . . . 1 . . . . . 2 . . . . . . Dispatch Records 1 | . . . . . . . . . . . . . . . . . . . . . . . . . . . . . . . . 1 . . . . . . Maintenance Status 4 | . 1 . . . . . 1 . . . . . . . . . . . . . . . . . . . . . . . 1 1 . . . . . . Patrol Status 2 | . . . . . . . . . . . . . . . . . . . . . . . . . . . . . . . . 1 . 1 . . . . Transport Status 1 | . 1 . . . . . . . . . . . . . . . . . . . . . . . . . . . . . . . . . . . . . Hauler Manifests 3 | . . . 1 . . . 1 . . . . . . . . . . . . . . . . . . . . . . . . 1 . . . . . . Zone Layout 11 | . 2 . . . . . 1 . . . . . . . . . . . . . . . . . 1 . . . . . . 4 2 1 . . . . Derelict Proto ID Bank 1 | . . . . . 1 . . . . . . . . . . . . . . . . . . . . . . . . . . . . . . . . . Fabricator Hacks 10 | . . . . . . . . . . 1 . . . . 3 . . . . . 1 . . . . 5 . . . . . . . . . . . . Network Status 3 | . . . . . . . . . . . . . . . . . . . . . 1 . . . . 2 . . . . . . . . . . . . Load Schematic 4 | . . . . . . . . . . 1 . . . . 2 . . . . . . . . . . 1 . . . . . . . . . . . . Build 3 | . . . . . . . . . . . . . . . 1 . . . . . . . . . . 2 . . . . . . . . . . . . Repair Station Hacks 19 | . . . . . . . 6 . . 2 . . . . 2 . . . . . . . . . . . . . . . . 6 . 1 2 . . . Scan Component 12 | . . . . . . . 3 . . 2 . . . . 1 . . . . . . . . . . . . . . . . 4 . 1 1 . . . Repair 7 | . . . . . . . 3 . . . . . . . 1 . . . . . . . . . . . . . . . . 2 . . 1 . . . Recycling Unit Hacks 1 | . . . . . . . . . . . . . . . . . . . . . . . . . . 1 . . . . . . . . . . . . Retrieve Components 1 | . . . . . . . . . . . . . . . . . . . . . . . . . . 1 . . . . . . . . . . . . Scanalyzer 15 | . . . 6 . . . 6 . . . . . . . . . . . . . . . . . . . . . . . 3 . . . . . . . Insert Component 8 | . . . 2 . . . 3 . . . . . . . . . . . . . . . . . . . . . . . 3 . . . . . . . Analyze 7 | . . . 4 . . . 3 . . . . . . . . . . . . . . . . . . . . . . . . . . . . . . . Garrison Access Hacks 10 | . . . . . . . . 1 . 1 . . . . 1 . . . . . . . . . 1 2 . . . . 1 1 . . 1 1 . . Seal Access 10 | . . . . . . . . 1 . 1 . . . . 1 . . . . . . . . . 1 2 . . . . 1 1 . . 1 1 . . Unauthorized Hacks 37 | . 2 . 2 . . . 3 . . . . . . . 2 . . . . . 1 7 . . 2 7 . . . . . 9 . 2 . . . . Terminals 23 | . . . . . . . 1 . . . . . . . 1 . . . . . . 7 . . 2 1 . . . . . 9 . 2 . . . . Assimilate 2 | . . . . . . . . . . . . . . . . . . . . . . . . . . . . . . . . 2 . . . . . . Botnet 5 | . . . . . . . . . . . . . . . . . . . . . . 2 . . 1 . . . . . . 1 . 1 . . . . Operators 2 | . . . . . . . 1 . . . . . . . . . . . . . . . . . . . . . . . . 1 . . . . . . Skim 13 | . . . . . . . . . . . . . . . 1 . . . . . . 5 . . 1 . . . . . . 5 . 1 . . . . Sabotage 1 | . . . . . . . . . . . . . . . . . . . . . . . . . . 1 . . . . . . . . . . . . Fabricators 4 | . . . . . . . . . . . . . . . 1 . . . . . 1 . . . . 2 . . . . . . . . . . . . Liberate 2 | . . . . . . . . . . . . . . . . . . . . . . . . . . 2 . . . . . . . . . . . . Haulers 1 | . . . . . . . . . . . . . . . . . . . . . 1 . . . . . . . . . . . . . . . . . Recompile 1 | . . . . . . . . . . . . . . . 1 . . . . . . . . . . . . . . . . . . . . . . . Repair Stations . | . . . . . . . . . . . . . . . . . . . . . . . . . . . . . . . . . . . . . . . Recycling Units 9 | . 2 . 1 . . . 2 . . . . . . . . . . . . . . . . . . 4 . . . . . . . . . . . . Monitor 1 | . . . . . . . . . . . . . . . . . . . . . . . . . . 1 . . . . . . . . . . . . Reject 1 | . . . . . . . . . . . . . . . . . . . . . . . . . . 1 . . . . . . . . . . . . Recyclers 1 | . . . . . . . . . . . . . . . . . . . . . . . . . . 1 . . . . . . . . . . . . Mask 2 | . . . . . . . 1 . . . . . . . . . . . . . . . . . . 1 . . . . . . . . . . . . Tunnel 4 | . 2 . 1 . . . 1 . . . . . . . . . . . . . . . . . . . . . . . . . . . . . . . Scanalyzers 1 | . . . 1 . . . . . . . . . . . . . . . . . . . . . . . . . . . . . . . . . . . Extract 1 | . . . 1 . . . . . . . . . . . . . . . . . . . . . . . . . . . . . . . . . . . Garrison Access . | . . . . . . . . . . . . . . . . . . . . . . . . . . . . . . . . . . . . . . . Data Cores Recovered 1 | . 1 . . . . . . . . . . . . . . . . . . . . . . . . . . . . . . . . . . . . . Used . | . . . . . . . . . . . . . . . . . . . . . . . . . . . . . . . . . . . . . . . Hacking Detections 90 | . 8 . 11 1 . 1 8 2 . 13 . . . . 7 . . . . . 1 9 . . 4 6 . . . 1 3 9 2 3 1 . . . Full Trace Events 6 | . . . . . . . . . . 1 . . . . 2 . . . . . . . . . . 1 . . . . 1 . . 1 . . . . Feedback Events . | . . . . . . . . . . . . . . . . . . . . . . . . . . . . . . . . . . . . . . . Feedback Blocked . | . . . . . . . . . . . . . . . . . . . . . . . . . . . . . . . . . . . . . . . Robot Schematics Acquired 9 | . . . 1 . . . . . . . . . 6 . . . . . . . . . . . . . . . . . . 1 . . 1 . . . Robots Built . | . . . . . . . . . . . . . . . . . . . . . . . . . . . . . . . . . . . . . . . Authchips . | . . . . . . . . . . . . . . . . . . . . . . . . . . . . . . . . . . . . . . . Time . | . . . . . . . . . . . . . . . . . . . . . . . . . . . . . . . . . . . . . . . Total Robot Build Rating . | . . . . . . . . . . . . . . . . . . . . . . . . . . . . . . . . . . . . . . . Part Schematics Acquired 33 | . . . 8 . . . 2 . . . . . 11 . 1 . . . . . . 1 . . . . . . 4 . . 3 . . 3 . . . Parts Built 5 | . . . . . . . . . . . . . . . 1 . . . . . . . . . . 4 . . . . . . . . . . . . Authchips . | . . . . . . . . . . . . . . . . . . . . . . . . . . . . . . . . . . . . . . . Time 156 | . . . . . . . . . . . . . . . 51 . . . . . . . . . . 105 . . . . . . . . . . . . Total Part Build Rating 25 | . . . . . . . . . . . . . . . 1 . . . . . . . . . . 24 . . . . . . . . . . . . Parts Repaired 7 | . . . . . . . 3 . . . . . . . 1 . . . . . . . . . . . . . . . . 2 . . 1 . . . Time 318 | . . . . . . . 138 . . . . . . . 25 . . . . . . . . . . . . . . . . 101 . . 54 . . . Parts Recycled . | . . . . . . . . . . . . . . . . . . . . . . . . . . . . . . . . . . . . . . . Recycled Matter . | . . . . . . . . . . . . . . . . . . . . . . . . . . . . . . . . . . . . . . . Retrieved Matter . | . . . . . . . . . . . . . . . . . . . . . . . . . . . . . . . . . . . . . . . Retrieved Components 3 | . . . . . . . . . . . . . . . . . . . . . . . . . . 3 . . . . . . . . . . . . Parts Scanalyzed 5 | . . . 2 . . . 3 . . . . . . . . . . . . . . . . . . . . . . . . . . . . . . . Part Schematics Acquired 4 | . . . 2 . . . 2 . . . . . . . . . . . . . . . . . . . . . . . . . . . . . . . Parts Damaged . | . . . . . . . . . . . . . . . . . . . . . . . . . . . . . . . . . . . . . . . Bothacking | -11 -10 -10 -9 -9 -9 -8 -8 -7 -7 -7 -7 -7 -7 -6 -6 -6 -6 -6 -6 -5 -5 -5 -5 -5 -5 -4 -4 -4 -4 -3 -3 -3 -2 -2 -2 -1 -1 -1 ------------ Run | Yrd Mat Min Mat Min Exi Min Mat Fac Was Fac Low Low Dat Pro Fac Low Low Zio Dee Pro Fac Ext Cet Arc Hub Fac Upp Upp Zhi Pro Res Tes Res Qua Sec Acc Com Ac0 Used RIF Installer . | . . . . . . . . . . . . . . . . . . . . . . . . . . . . . . . . . . . . . . . Robots Hacked 7 | . . . . . 5 1 . . . . . . . . . . 1 . . . . . . . . . . . . . . . . . . . . . Non-combat 3 | . . . . . 3 . . . . . . . . . . . . . . . . . . . . . . . . . . . . . . . . . Combat 3 | . . . . . 2 1 . . . . . . . . . . . . . . . . . . . . . . . . . . . . . . . . Robot Hacks Applied 6 | . . . . . 5 1 . . . . . . . . . . . . . . . . . . . . . . . . . . . . . . . . parse_system 6 | . . . . . 5 1 . . . . . . . . . . . . . . . . . . . . . . . . . . . . . . . . Manual 1 | . . . . . . . . . . . . . . . . . 1 . . . . . . . . . . . . . . . . . . . . . Relay Couplers Released 12 | . . . . . . . . 4 . . . . . . . . . . . . . . . . . 1 . . . . . . . . 3 4 . . Machine Destruction 8 | . . . . . . . . . . . . . . . . . . . . . . . . . . 1 . . . . . . . . 3 4 . . Programmers 4 | . . . . . . . . 4 . . . . . . . . . . . . . . . . . . . . . . . . . . . . . . Fabnet Peak Effective % . | . . . . . . . . . . . . . . . . . . . . . . . . . . . . . . . . . . . . . . . Robots Rewired 25 | . . . . . . . . . . . . . . . . . . . . . . 25 . . . . . . . . . . . . . . . . Allies Hacked 1 | . . . . . . . . . . . . . . . . . . . . . . . . . . . . . . . . 1 . . . . . . Hacks Repelled . | . . . . . . . . . . . . . . . . . . . . . . . . . . . . . . . . . . . . . . . Allies | -11 -10 -10 -9 -9 -9 -8 -8 -7 -7 -7 -7 -7 -7 -6 -6 -6 -6 -6 -6 -5 -5 -5 -5 -5 -5 -4 -4 -4 -4 -3 -3 -3 -2 -2 -2 -1 -1 -1 -------- Run | Yrd Mat Min Mat Min Exi Min Mat Fac Was Fac Low Low Dat Pro Fac Low Low Zio Dee Pro Fac Ext Cet Arc Hub Fac Upp Upp Zhi Pro Res Tes Res Qua Sec Acc Com Ac0 Total Allies 88 | . . . . 4 . . . . 1 . . . . 1 . . 1 12 . . . 37 5 . . 5 . . . . 6 1 . . . 15 . . Largest Group 32 | . . . . 4 2 . . . 1 . . . . 1 . . 1 13 8 . . 32 32 24 19 3 . . . . 4 1 . . . 15 . . Highest-Rated Group 1193 | . . . . 71 32 . . . 31 . . . . 96 . . 85 411 274 . . 1043 1193 1035 913 138 . . . . 184 10 . . . 213 . . Highest-Rated Ally 159 | . . . . 31 16 . . . 31 . . . . 96 . . 85 85 85 . . 159 159 96 96 56 . . . . 46 10 . . . 15 . . Total Orders 29 | . . . . . 3 . . . . . . . . . 7 9 . . . . . . . 2 2 6 . . . . . . . . . . . . STAY 5 | . . . . . 2 . . . . . . . . . . . . . . . . . . 1 2 . . . . . . . . . . . . . FOLLOW 2 | . . . . . 1 . . . . . . . . . . . . . . . . . . 1 . . . . . . . . . . . . . . EXPLORE 13 | . . . . . . . . . . . . . . . 3 6 . . . . . . . . . 4 . . . . . . . . . . . . RETURN 9 | . . . . . . . . . . . . . . . 4 3 . . . . . . . . . 2 . . . . . . . . . . . . Ally Attacks 415 | . . . . 15 8 . . . 5 . . . . 2 . . 2 . 24 . . 146 77 20 50 32 . . . . 25 . . . . 9 . . Total Damage 10210 | . . . . 162 109 . . . 62 . . . . 94 . . 142 . 466 . . 3756 1756 278 1791 1022 . . . . 488 . . . . 84 . . Kills 72 | . . . . 4 . . . . . . . . . 1 . . 1 . 5 . . 29 8 3 9 4 . . . . 7 . . . . 1 . . Allies Corrupted 7 | . . . . . . . . . . . . . . 1 . . . . . . . . . . 5 1 . . . . . . . . . . . . Allies Melted 1 | . . . . . . . . . . . . . . . . . . . . . . . . . . . . . . . . . . . . 1 . . Intel | -11 -10 -10 -9 -9 -9 -8 -8 -7 -7 -7 -7 -7 -7 -6 -6 -6 -6 -6 -6 -5 -5 -5 -5 -5 -5 -4 -4 -4 -4 -3 -3 -3 -2 -2 -2 -1 -1 -1 ------- Run | Yrd Mat Min Mat Min Exi Min Mat Fac Was Fac Low Low Dat Pro Fac Low Low Zio Dee Pro Fac Ext Cet Arc Hub Fac Upp Upp Zhi Pro Res Tes Res Qua Sec Acc Com Ac0 Robot Analysis Total 11 | . 2 . 1 . . 1 2 . . . . . . . . . . . . . . . . . . 1 . . 4 . . . . . . . . . Derelict Logs Recovered 13 | . . 2 . 1 . . . . . . 1 1 . . . 3 1 1 . . . . . . . . 2 1 . . . . . . . . . . Drone Launches 18 | . . . . . . . . . . . . . . . 6 7 . . . . . . . . . 5 . . . . . . . . . . . . Drone Recoveries 12 | . . . . . . . . . . . . . . . 4 5 . . . . . . . . . 3 . . . . . . . . . . . . Exploration | -11 -10 -10 -9 -9 -9 -8 -8 -7 -7 -7 -7 -7 -7 -6 -6 -6 -6 -6 -6 -5 -5 -5 -5 -5 -5 -4 -4 -4 -4 -3 -3 -3 -2 -2 -2 -1 -1 -1 ------------- Run | Yrd Mat Min Mat Min Exi Min Mat Fac Was Fac Low Low Dat Pro Fac Low Low Zio Dee Pro Fac Ext Cet Arc Hub Fac Upp Upp Zhi Pro Res Tes Res Qua Sec Acc Com Ac0 Turns Passed 70293 | 273 1632 1174 2769 1928 3977 1006 2679 694 488 5628 890 902 104 781 1546 1796 763 2595 3518 2009 722 2989 766 736 1104 1318 2682 1827 890 2867 1784 3051 1585 1575 1704 6209 1194 138 Spaces Moved 26680 | 87 628 583 997 725 1514 592 1496 342 259 2681 497 492 81 379 744 540 289 1577 1519 570 266 1076 176 187 356 444 802 690 213 1082 512 881 412 469 529 1775 177 41 Core 57 | . . . . . . . . . 29 . . . . . . 9 . . 19 . . . . . . . . . . . . . . . . . . . Treads 10398 | 87 628 55 903 725 1500 22 . . 175 2276 497 389 . . . 33 . . . . . . 13 37 . . 79 3 . . 38 48 350 115 432 1775 177 41 Legs 8071 | . . . . . . . . . . . . . . . . . . . 525 570 266 1076 163 150 356 444 723 687 213 1082 474 833 62 354 93 . . . Wheels 8150 | . . 528 94 . 14 570 1496 342 55 405 . 103 81 379 744 498 289 1577 975 . . . . . . . . . . . . . . . . . . . Hover . | . . . . . . . . . . . . . . . . . . . . . . . . . . . . . . . . . . . . . . . Flight . | . . . . . . . . . . . . . . . . . . . . . . . . . . . . . . . . . . . . . . . Fastest Speed 50 | 160 160 175 175 240 215 145 145 145 50 115 160 125 125 125 125 240 155 123 123 210 180 210 210 210 210 210 210 240 210 210 240 170 210 210 151 150 150 150 Average Speed 196 | 160 174 188 233 240 239 148 145 159 145 159 160 163 125 127 168 295 223 151 196 210 209 210 218 222 210 239 247 240 237 239 246 244 239 236 170 156 202 150 Slowest Speed 2450 | 160 320 320 240 240 240 240 160 160 200 240 160 240 140 170 275 2250 240 155 2450 210 210 210 320 300 210 240 320 320 240 240 330 330 240 240 295 250 230 150 Overloaded Moves . | . . . . . . . . . . . . . . . . . . . . . . . . . . . . . . . . . . . . . . . Propulsion Burnouts . | . . . . . . . . . . . . . . . . . . . . . . . . . . . . . . . . . . . . . . . Robots Hopped . | . . . . . . . . . . . . . . . . . . . . . . . . . . . . . . . . . . . . . . . Cave-ins Triggered 1 | . . . . . . . . . . 1 . . . . . . . . . . . . . . . . . . . . . . . . . . . . Teleports 4 | . . . . . . . . . . . . . . . . . . . . . . . . . . . . . . . . . . . 2 . 1 1 Spacefolds 1 | . . . . . . . . . . . . . . . . . . . . . . . . . . . . . . . . . . . 1 . . . Exploration Rate (%) 60 | 7 87 96 84 99 91 100 65 10 83 52 75 70 69 63 28 87 42 85 89 72 7 86 60 79 44 23 74 73 60 98 21 87 12 61 42 47 15 3 Regions Visited 38 Branch Regions 26 Pre-discovered Areas 14 | . 2 . 1 . 1 . 1 . . . . 1 1 . . 1 . 2 . . . . . . . . 1 . 3 . . . . . . . . . Known Exits Taken 15 | . . . . . . 1 . . . 1 . . . 1 1 1 . . . . . 1 . . 1 1 1 . . . 1 1 1 1 1 1 . . Unknown Exits Taken 21 | 1 1 1 1 1 1 . 1 . . . 1 1 1 . . . 1 1 1 1 1 . 1 1 . . . 1 1 1 . . . . . . 1 . Scrap Searched 29 | . . 3 . 3 . 2 . . . . 4 4 . . . 2 1 4 . 1 . . . . . . 2 1 . 2 . . . . . . . . Spaces Dug 662 | . 3 1 22 12 6 . 14 11 . 53 16 19 . 19 42 16 . . 14 14 10 4 15 1 16 10 6 16 . 8 20 39 40 18 27 94 76 . Terrain Destroyed 1993 | . 6 1 86 151 40 12 50 11 17 107 16 36 . 30 73 42 1 2 22 86 35 12 18 4 41 25 19 40 . 24 74 45 67 31 42 353 256 118 Melee 56 | . 3 1 . . . . 4 11 . 33 3 . . 1 . . . . . . . . . . . . . . . . . . . . . . . . Projectile 676 | . . . . . 12 9 . . 6 29 . . . . 41 31 1 . 22 49 17 12 18 4 41 25 19 3 . 24 41 45 57 31 42 53 37 7 AOE 1257 | . 3 . 86 151 27 . 46 . 11 45 13 36 . 29 32 11 . 2 . 37 18 . . . . . . 37 . . 33 . 10 . . 300 219 111 Terrain Rammed . | . . . . . . . . . . . . . . . . . . . . . . . . . . . . . . . . . . . . . . . Walls Destroyed . | . . . . . . . . . . . . . . . . . . . . . . . . . . . . . . . . . . . . . . . Machines Disabled . | . . . . . . . . . . . . . . . . . . . . . . . . . . . . . . . . . . . . . . . Actions | -11 -10 -10 -9 -9 -9 -8 -8 -7 -7 -7 -7 -7 -7 -6 -6 -6 -6 -6 -6 -5 -5 -5 -5 -5 -5 -4 -4 -4 -4 -3 -3 -3 -2 -2 -2 -1 -1 -1 --------- Run | Yrd Mat Min Mat Min Exi Min Mat Fac Was Fac Low Low Dat Pro Fac Low Low Zio Dee Pro Fac Ext Cet Arc Hub Fac Upp Upp Zhi Pro Res Tes Res Qua Sec Acc Com Ac0 Total 41982 | 177 1065 640 1257 861 1704 668 1882 429 332 3522 552 544 83 639 934 651 390 1764 1956 1276 407 1733 536 485 597 632 1453 849 594 1308 1000 1783 998 931 1302 5082 869 97 Wait 10298 | 29 347 14 33 75 18 3 231 4 4 315 . 10 . 205 39 28 67 127 198 618 35 428 298 246 121 119 608 146 335 187 360 653 352 341 432 2889 382 1 Move 26640 | 86 627 582 996 724 1513 591 1495 342 258 2680 496 491 80 378 743 539 288 1576 1518 569 265 1075 175 186 356 443 801 689 212 1081 511 880 411 468 525 1774 176 40 Hop . | . . . . . . . . . . . . . . . . . . . . . . . . . . . . . . . . . . . . . . . Pick Up 394 | 2 17 17 29 9 26 8 15 6 9 30 7 1 . 1 17 3 5 12 32 2 24 1 5 5 7 8 2 . 1 1 6 11 16 6 17 22 9 5 Fast Attach 279 | 2 . . 5 4 4 4 5 5 14 47 6 6 1 10 17 3 2 5 15 4 7 1 5 4 3 1 2 . 13 3 7 18 3 8 22 15 6 2 Attach 175 | 1 1 1 7 6 6 6 9 4 4 12 3 1 . 3 8 9 7 4 7 . 2 1 4 2 1 1 . . 1 . 3 5 10 2 18 9 14 3 Detach 188 | . . . 2 . 1 6 6 . . 11 1 . . 5 11 9 2 3 11 8 8 1 5 7 2 5 9 3 6 4 9 14 8 3 11 11 6 . Swap 459 | 4 12 4 42 8 22 11 22 5 3 29 8 7 1 11 21 5 3 9 19 2 2 3 1 3 9 14 2 3 . . 5 18 31 14 41 26 33 6 Drop 531 | 5 7 7 40 3 25 12 22 8 10 36 8 1 1 4 14 2 2 12 52 6 28 3 12 6 10 7 4 . 16 7 13 32 17 11 27 40 16 5 Fire 2561 | 48 44 8 99 28 81 24 69 35 30 196 16 23 . 18 63 53 13 16 87 67 36 51 31 26 86 34 25 8 9 25 81 152 149 78 204 290 223 35 Melee 225 | . 8 2 . . 8 1 5 20 . 153 7 4 . 4 . . 1 . 6 . . . . . . . . . . . . . . . 5 . 1 . Ram 3 | . . 1 . . . 1 . . . 1 . . . . . . . . . . . . . . . . . . . . . . . . . . . . Kick 1 | . . . . . . . . . . . . . . . . . . . . . . . . . 1 . . . . . . . . . . . . . Crush 29 | . 2 . 4 4 . 1 3 . . 12 . . . . . . . . . . . . . . 1 . . . . . . . 1 . . . 1 . Escape Stasis 13 | . . . . . . . . . . . . . . . . . . . . . . . . . . . . . . . 5 . . . . 6 2 . Rewire 181 | . . . . . . . . . . . . . . . . . . . 11 . . 169 . . . . . . 1 . . . . . . . . . Trap 4 | . . 4 . . . . . . . . . . . . . . . . . . . . . . . . . . . . . . . . . . . . Miscellaneous 1 | . . . . . . . . . . . . . . . 1 . . . . . . . . . . . . . . . . . . . . . . . Route ------- -11/Scrapyard -10/Materials (discovered 4 exits: *Mat x2 / [*Min x2]) -10/Mines (discovered 2 exits: *Mat x2) -9/Materials (discovered 5 exits: *Mat x3 / *Min x2) -9/Mines (discovered 3 exits: *Mat x2 / *Exi) -9/Exiles -8/Mines (discovered 2 exits: *Mat x2) -8/Materials (discovered 2 exits: *Fac x2) -7/Factory -7/Waste -7/Factory (discovered 6 exits: *Fac x3 / Sto / *Low x2) -7/Lower Caves -7/Lower Caves -7/Data Miner -6/Proximity Caves -6/Factory (discovered 3 exits: *Fac / *Low x2) -6/Lower Caves -6/Lower Caves (discovered 2 exits: *Fac / [*Zio]) -6/Zion (discovered 2 exits: [*Dee] / [*Pro]) -6/Deep Caves -5/Proximity Caves -5/Factory (discovered 2 exits: Upp / *Ext) -5/Extension (discovered 3 exits: *Fac x2 / *Cet) -5/Cetus (discovered 2 exits: *Fac / [*Arc]) -5/Archives (discovered 3 exits: *Fac / *Hub x2) -5/Hub_04(d) -4/Factory (discovered 2 exits: *Upp x2) -4/Upper Caves -4/Upper Caves (discovered 2 exits: *Res / *Zhi) -4/Zhirov -3/Proximity Caves -3/Research (discovered 5 exits: Res x3 / *Tes x2) -3/Testing -2/Research (discovered 2 exits: *Qua x2) -2/Quarantine -2/Section 7 -1/Access -1/Command -1/Access_0 To Fleet Rendezvous History --------- Turn | Location | Event 7 | -11/Scrapyard | Discovered new exit (range 3) 274 | -11/Scrapyard | Entered Materials 327 | -10/Materials | Build established: Mutant 420 | -10/Materials | Central database locked down 991 | -10/Materials | Discovered new exit (range 9) 1635 | -10/Materials | Discovered new exit (range 15) 1867 | -10/Materials | Discovered new exit (range 10) 1893 | -10/Materials | Discovered new exit (range 5) 1906 | -10/Materials | Entered Mines 2006 | -10/Mines | Received a Rocket Launcher from a helpful Derelict 2080 | -10/Mines | Discovered new exit (range 15) 2207 | -10/Mines | Learned location of 1 exit from Materials 2365 | -10/Mines | Core integrity fell below 50% 2442 | -10/Mines | Discovered new exit (range 5) 2447 | -10/Mines | Learned Materials trap positions 2494 | -10/Mines | Found a hidden stash of uninstalled traps 3080 | -10/Mines | Entered Materials 3080 | -9/Materials | Evolved 2 slots: Propulsion x1, Utility x1 3081 | -9/Materials | Identified exit to Materials 3082 | -9/Materials | Loaded intel: 8 trap records 3583 | -9/Materials | Discovered exit to Materials (range 16) 4495 | -9/Materials | Discovered new exit (range 11) 4729 | -9/Materials | Discovered exit to Materials (range 16) 5080 | -9/Materials | First assault squad dispatched 5153 | -9/Materials | Destroyed 8 combat bots 5564 | -9/Materials | Central database locked down 5727 | -9/Materials | Discovered new exit (range 16) 5849 | -9/Materials | Entered Mines 5912 | -9/Mines | Lost 5 parts (1n3u1w) 6151 | -9/Mines | Build established: Scavenger-Mutant 6350 | -9/Mines | Assembled infested the area 6604 | -9/Mines | Assisted by bots powering up and referring to "LRC-V3" 6647 | -9/Mines | Learned Materials trap positions 6763 | -9/Mines | Received a Mining Laser from a helpful Derelict 6763 | -9/Mines | Discovered exit to Materials (range 5) 6903 | -9/Mines | Discovered exit to Materials (range 10) 6947 | -9/Mines | Met a Derelict shopkeep closing up shop 7768 | -9/Mines | Deemed a non-threat by the Exiles lab entrance 7768 | -9/Mines | Discovered new exit (range 5) 7777 | -9/Mines | Entered Exiles 7777 | -9/Exiles | Accompanied by 2 allies 7833 | -9/Exiles | Met 8R-AWN 7878 | -9/Exiles | Met EX-HEX 8027 | -9/Exiles | Met EX-DEC 8153 | -9/Exiles | Discovered new exit (range 10) 8277 | -9/Exiles | Learned location of Zion (-6) 9035 | -9/Exiles | Met EX-BIN 9443 | -9/Exiles | Aligned with FarCom system 9445 | -9/Exiles | Given EX-Vault access code 9505 | -9/Exiles | Opened EX-Vault 9558 | -9/Exiles | Warned to stay clear of 0b10 Research branches 10263 | -9/Exiles | Attacked by the Exiles 10435 | -9/Exiles | Lost 5 parts (3n2w) 10441 | -9/Exiles | Destroyed 8R-AWN 10456 | -9/Exiles | Found 8R-AWN's Boregun 10459 | -9/Exiles | Found 8R-AWN's Boregun 10472 | -9/Exiles | Found Exp. Targeting Computer 10477 | -9/Exiles | Found AS-neutralizer No. 17b 10604 | -9/Exiles | Build established: Mutant 10849 | -9/Exiles | Destroyed EX-DEC 10939 | -9/Exiles | Build established: Scavenger-Mutant 11021 | -9/Exiles | Destroyed EX-BIN 11029 | -9/Exiles | Destroyed EX-HEX 11083 | -9/Exiles | Found Exp. Core Analyzer 11754 | -9/Exiles | Entered Mines 11794 | -8/Mines | AD-0RF came to Exiles' defense 11861 | -8/Mines | Destroyed AD-0RF 11883 | -8/Mines | Lost 3 parts (1p2n) 11897 | -8/Mines | Found AD-0RF's Magmablaster 12013 | -8/Mines | Discovered exit to Materials (range 9) 12094 | -8/Mines | Build established: Mutant 12390 | -8/Mines | Discovered exit to Materials (range 15) 12477 | -8/Mines | Build established: Scavenger-Mutant 12562 | -8/Mines | Core integrity fell below 50% 12760 | -8/Mines | Entered Materials 12760 | -8/Materials | Evolved 2 slots: Utility x2 12761 | -8/Materials | Loaded intel: 24 trap records 13127 | -8/Materials | Repaired Imp. Shield Generator 13167 | -8/Materials | Repaired EM Pulse Cannon 13224 | -8/Materials | Repaired Lyr. Heavy Armor Plating 13265 | -8/Materials | Discovered new exit (range 13) 14129 | -8/Materials | Discovered new exit (range 16) 15439 | -8/Materials | Entered Factory 15439 | -7/Factory | Evolved 2 slots: Propulsion x1, Utility x1 16000 | -7/Factory | Garrison activated, responded to threat 16133 | -7/Factory | Sucked down chute 16133 | -7/Factory | Entered Waste 16134 | -7/Waste | Met a frightened Derelict 16148 | -7/Waste | EMP discharged 16158 | -7/Waste | Spotted C-40 Crusher 16163 | -7/Waste | Spotted C-40 Crusher 16186 | -7/Waste | Destroyed C-40 Crusher 16232 | -7/Waste | Spotted C-40 Crusher 16234 | -7/Waste | Destroyed C-40 Crusher 16236 | -7/Waste | Destroyed C-40 Crusher 16248 | -7/Waste | EMP discharged 16248 | -7/Waste | System corruption reached 10% 16251 | -7/Waste | Spotted C-40 Crusher 16255 | -7/Waste | Destroyed C-40 Crusher 16257 | -7/Waste | Spotted C-40 Crusher 16263 | -7/Waste | Destroyed C-40 Crusher 16339 | -7/Waste | Spotted C-40 Crusher 16348 | -7/Waste | EMP discharged 16355 | -7/Waste | Crushed by Compactor (1 part destroyed, 1 dropped) 16358 | -7/Waste | Crushed by Compactor (1 part destroyed, 1 dropped) 16361 | -7/Waste | Crushed by Compactor (1 part destroyed, 2 dropped) 16364 | -7/Waste | Crushed by Compactor (1 part destroyed, 1 dropped) 16367 | -7/Waste | Crushed by Compactor (1 part destroyed, 1 dropped) 16367 | -7/Waste | Released all parts (2) 16385 | -7/Waste | Destroyed C-40 Crusher 16398 | -7/Waste | Lost 5 parts (1u4w) 16409 | -7/Waste | Found Damper Plating 16448 | -7/Waste | EMP discharged 16470 | -7/Waste | System corruption reached 30% 16548 | -7/Waste | EMP discharged 16591 | -7/Waste | Discovered new exit (range 10) 16621 | -7/Waste | Entered Factory 17975 | -7/Factory | Discovered new exit (range 11) 18003 | -7/Factory | Build established: Mutant 18390 | -7/Factory | Crushed by falling debris 18421 | -7/Factory | Lost 3 parts (2u1w) 19308 | -7/Factory | Identified exit to Factory 20416 | -7/Factory | Discovered exit to Factory (range 11) 20506 | -7/Factory | Lost 4 parts (3n1u) 20662 | -7/Factory | Build established: Scavenger-Mutant 21021 | -7/Factory | First assault squad dispatched 21209 | -7/Factory | Discovered exit to Factory (range 7) 21483 | -7/Factory | Build established: Mutant 21835 | -7/Factory | Identified exit to Storage 21835 | -7/Factory | Identified exit to Lower Caves 22249 | -7/Factory | Entered Lower Caves 22396 | -7/Lower Caves | Attracted the attention of an 0b10 checkpoint 22442 | -7/Lower Caves | Core integrity fell below 50% 22466 | -7/Lower Caves | Lost 3 parts (2n1u) 22790 | -7/Lower Caves | Learned Factory stockpile data 23043 | -7/Lower Caves | Discovered new exit (range 5) 23139 | -7/Lower Caves | Entered another Lower Caves area 23430 | -7/Lower Caves | Spotted B-75 Beast 23997 | -7/Lower Caves | Discovered new exit (range 6) 24041 | -7/Lower Caves | Entered Data Miner 24041 | -7/Data Miner | Discovered new exit (range 6) 24066 | -7/Data Miner | Met Data Miner 24094 | -7/Data Miner | Learned location of Section 7 (-2) 24094 | -7/Data Miner | Acquired the access code to Warlord's prototype stash 24111 | -7/Data Miner | Received God Mode back door access code from Data Miner 24145 | -7/Data Miner | Entered Proximity Caves 24361 | -6/Proximity Caves | Received a Behemoth hack from an annoying Tinkerer 24402 | -6/Proximity Caves | Spotted B-75 Beast 24419 | -6/Proximity Caves | Destroyed B-75 Beast 24792 | -6/Proximity Caves | Attracted the attention of an 0b10 checkpoint 24825 | -6/Proximity Caves | Escorted by Enhanced Grunt 24844 | -6/Proximity Caves | Discovered exit to Factory (range 10) 24854 | -6/Proximity Caves | Lost 4 parts (1n1u2w) 24926 | -6/Proximity Caves | Entered Factory 24926 | -6/Factory | Evolved 2 slots: Power x1, Utility x1 25191 | -6/Factory | Build established: Scavenger-Mutant 25289 | -6/Factory | Repaired Lyr. Medium Armor Plating 25400 | -6/Factory | Fabricated Huge Storage Unit? 25510 | -6/Factory | Identified exit to Lower Caves 26082 | -6/Factory | Discovered new exit (range 20) 26394 | -6/Factory | Spotted B-75 Beast 26472 | -6/Factory | Entered Lower Caves 26495 | -6/Lower Caves | Lost 3 parts (1p1n1w) 26500 | -6/Lower Caves | Identified exit to Lower Caves 26747 | -6/Lower Caves | Build established: Mutant 27015 | -6/Lower Caves | Encountered a Warlord checkpoint 27352 | -6/Lower Caves | Attracted the attention of an 0b10 outpost 27684 | -6/Lower Caves | Attracted the attention of an 0b10 checkpoint 27713 | -6/Lower Caves | Build established: Scavenger-Mutant 28268 | -6/Lower Caves | Entered another Lower Caves area 28274 | -6/Lower Caves | Spotted B-75 Beast 28316 | -6/Lower Caves | Discovered new exit (range 14) 28364 | -6/Lower Caves | Befriended a Behemoth using the annoying Tinkerer's hack 28393 | -6/Lower Caves | Lost 7 parts (1p3n2u1w) 28575 | -6/Lower Caves | Build established: Mutant 28923 | -6/Lower Caves | Discovered new exit (range 7) 29031 | -6/Lower Caves | Entered Zion 29031 | -6/Zion | Accompanied by 1 ally 29181 | -6/Zion | Discovered new exit (range 16) 29311 | -6/Zion | Learned Factory emergency access door positions 29311 | -6/Zion | Learned location of Armory (-3) 29413 | -6/Zion | Gained Derelict followers 29646 | -6/Zion | Gained Derelict followers 29686 | -6/Zion | Received a hallucinogenic algorithm 29722 | -6/Zion | Met Imprinter 29942 | -6/Zion | Learned location of Extension (-5) 30002 | -6/Zion | Gained Derelict followers 31065 | -6/Zion | Discovered new exit (range 3) 31065 | -6/Zion | Saw the warning signs outside the Deep Caves entrance 31087 | -6/Zion | Murdered 3 allies 31287 | -6/Zion | System corruption cleaned by Quarantine Array 31626 | -6/Zion | Entered Deep Caves 31626 | -6/Deep Caves | Accompanied by 8 allies 31882 | -6/Deep Caves | Attacked by Z-Imprinter 31894 | -6/Deep Caves | Core integrity fell below 50% 31894 | -6/Deep Caves | Destroyed Z-Imprinter 31924 | -6/Deep Caves | Lost 7 allies 32224 | -6/Deep Caves | Build established: Scavenger-Mutant 32232 | -6/Deep Caves | Found Prototype Protection 32232 | -6/Deep Caves | Identified Zio. Weapon Casing 32236 | -6/Deep Caves | Found Prototype Protection 32236 | -6/Deep Caves | Identified Zio. Heavy Carapace 32513 | -6/Deep Caves | Z-Facility disabled 32596 | -6/Deep Caves | Found Zio. Heavy Carapace 32836 | -6/Deep Caves | Discovered new exit (range 8) 32937 | -6/Deep Caves | Spotted AG-83890 32992 | -6/Deep Caves | Destroyed AG-83890 33005 | -6/Deep Caves | Found GOLEM Unit 33167 | -6/Deep Caves | Spotted AG-12338 33203 | -6/Deep Caves | Destroyed AG-12338 33210 | -6/Deep Caves | Found GOLEM Unit 33246 | -6/Deep Caves | Triggered Deep Caves wall 33246 | -6/Deep Caves | Spotted AS-16118 33268 | -6/Deep Caves | Destroyed AS-16118 33270 | -6/Deep Caves | Destroyed AS-98073 33291 | -6/Deep Caves | Destroyed 39 combat bots 33424 | -6/Deep Caves | Exposed GOLEM chamber 33428 | -6/Deep Caves | Found GOLEM Unit 33433 | -6/Deep Caves | Found GOLEM Unit 33939 | -6/Deep Caves | Build established: Golem 34179 | -6/Deep Caves | Found Prototype Processor 35015 | -6/Deep Caves | Found GOLEM Unit 35144 | -6/Deep Caves | Entered Proximity Caves 35329 | -5/Proximity Caves | Spotted B-75 Beast 35385 | -5/Proximity Caves | Destroyed B-75 Beast 36468 | -5/Proximity Caves | Attracted the attention of an 0b10 outpost 36539 | -5/Proximity Caves | Discovered new exit (range 15) 37153 | -5/Proximity Caves | Entered Factory 37153 | -5/Factory | Evolved 2 slots: Utility x2 37154 | -5/Factory | Identified exit to Upper Caves 37499 | -5/Factory | Discovered new exit (range 16) 37678 | -5/Factory | Incoming assault squad redirected 37753 | -5/Factory | First assault squad dispatched 37875 | -5/Factory | Entered Extension 38022 | -5/Extension | Rescued A7 38166 | -5/Extension | Rescued a captive Derelict 38177 | -5/Extension | Rescued a captive Derelict 38475 | -5/Extension | First assault squad dispatched 38950 | -5/Extension | Build established: Hacker-Golem 39004 | -5/Extension | Rescued a captive Derelict 39406 | -5/Extension | Build established: Commander-Golem 39512 | -5/Extension | Spotted B-75 Beast 39518 | -5/Extension | Allies destroyed B-75 Beast 39529 | -5/Extension | Spotted B-75 Beast 39544 | -5/Extension | Allies destroyed B-75 Beast 39851 | -5/Extension | Rescued a captive Derelict 39852 | -5/Extension | Rescued a captive Derelict 39904 | -5/Extension | Rescued a captive Derelict 39905 | -5/Extension | Rescued a captive Derelict 40178 | -5/Extension | Rescued a captive Derelict 40188 | -5/Extension | Rescued a captive Derelict 40396 | -5/Extension | Rescued a captive Derelict 40398 | -5/Extension | Rescued a captive Derelict 40459 | -5/Extension | Discovered new exit (range 10) 40461 | -5/Extension | Discovered new exit (range 6) 40535 | -5/Extension | Identified exit to Factory 40615 | -5/Extension | Identified exit to Cetus 40685 | -5/Extension | Learned 4 Upper Caves zone layouts 40793 | -5/Extension | Learned 4 Armory zone layouts 40830 | -5/Extension | Learned location of 1 exit from Armory 40864 | -5/Extension | Entered Cetus 40864 | -5/Cetus | Accompanied by 32 allies (A7) 40869 | -5/Cetus | Acquired a Cetus Manufacturing Module code from A7 40892 | -5/Cetus | Spotted Cetus Guard 40892 | -5/Cetus | Spotted Cetus Guard 40896 | -5/Cetus | Spotted Cetus Guard 40900 | -5/Cetus | Allies destroyed Cetus Guard 40900 | -5/Cetus | Spotted Cetus Guard 40917 | -5/Cetus | Allies destroyed Cetus Guard 40920 | -5/Cetus | Allies destroyed Cetus Guard 40923 | -5/Cetus | Allies destroyed Cetus Guard 40952 | -5/Cetus | Lost 5 allies 41020 | -5/Cetus | Started Cetus Manufacturing Module 41045 | -5/Cetus | Manufactured an Enhanced Grunt 41045 | -5/Cetus | Discovered new exit (range 16) 41070 | -5/Cetus | Manufactured an Enhanced Grunt 41095 | -5/Cetus | Manufactured an Enhanced Grunt 41097 | -5/Cetus | Spotted Cetus Guard 41098 | -5/Cetus | Spotted Cetus Guard 41102 | -5/Cetus | Destroyed Cetus Guard 41102 | -5/Cetus | Spotted Cetus Guard 41105 | -5/Cetus | Spotted Cetus Guard 41118 | -5/Cetus | Allies destroyed Cetus Guard 41120 | -5/Cetus | Manufactured an Enhanced Grunt 41122 | -5/Cetus | Destroyed Cetus Guard 41122 | -5/Cetus | Allies destroyed Cetus Guard 41129 | -5/Cetus | Discovered exit to Factory (range 16) 41145 | -5/Cetus | Manufactured an Enhanced Grunt 41146 | -5/Cetus | Met Revision 17 41152 | -5/Cetus | Lost 6 allies 41266 | -5/Cetus | Murdered A7 41272 | -5/Cetus | Extracted ID and sensor layout for unrecognized location from A7's data core 41614 | -5/Cetus | Security sweep announced 41630 | -5/Cetus | Entered Archives 41630 | -5/Archives | Accompanied by 24 allies 41698 | -5/Archives | Lost 4 allies 41702 | -5/Archives | Discovered exit to Factory (range 16) 41769 | -5/Archives | Discovered new exit (range 14) 42126 | -5/Archives | Discovered new exit (range 16) 42366 | -5/Archives | Entered Hub_04(d) 42366 | -5/Hub_04(d) | Accompanied by 19 allies 42614 | -5/Hub_04(d) | Network Hub disabled 42647 | -5/Hub_04(d) | Lost 12 allies 42718 | -5/Hub_04(d) | Network Hub disabled 42762 | -5/Hub_04(d) | Spotted Lightning 42765 | -5/Hub_04(d) | Spotted Lightning 42767 | -5/Hub_04(d) | Spotted Lightning 42771 | -5/Hub_04(d) | Destroyed Lightning 42786 | -5/Hub_04(d) | Destroyed Lightning 42791 | -5/Hub_04(d) | Destroyed Lightning 42802 | -5/Hub_04(d) | Lost 6 allies 42814 | -5/Hub_04(d) | Identified Modified TNC 42824 | -5/Hub_04(d) | Found Prototype Device 42824 | -5/Hub_04(d) | Identified Exp. Phase Shifter 42832 | -5/Hub_04(d) | Found Prototype Device 42832 | -5/Hub_04(d) | Identified Exp. EM Disruption Field 42842 | -5/Hub_04(d) | Found Prototype Energy Cannon 42946 | -5/Hub_04(d) | Spotted Lightning 43092 | -5/Hub_04(d) | Build established: Golem 43215 | -5/Hub_04(d) | Spotted Lightning 43215 | -5/Hub_04(d) | Spotted Lightning 43218 | -5/Hub_04(d) | System corruption reached 10% 43238 | -5/Hub_04(d) | Network Hub disabled 43253 | -5/Hub_04(d) | Destroyed Lightning 43259 | -5/Hub_04(d) | Destroyed Lightning 43289 | -5/Hub_04(d) | Destroyed Lightning 43345 | -5/Hub_04(d) | Found Exp. EM Disruption Field 43456 | -5/Hub_04(d) | Discovered exit to Factory (range 5) 43456 | -5/Hub_04(d) | Spotted Lightning 43460 | -5/Hub_04(d) | Spotted Lightning 43460 | -5/Hub_04(d) | Spotted Lightning 43470 | -5/Hub_04(d) | Entered Factory 43470 | -4/Factory | Evolved 2 slots: Utility x1, Weapon x1 43663 | -4/Factory | Incoming investigation squad redirected 43690 | -4/Factory | Fabricated Weapon Mount (x2) 43806 | -4/Factory | Build established: Hacker-Golem 43910 | -4/Factory | Fabricated Adv. Hardlight Generator? 44219 | -4/Factory | Spotted B-86 Titan 44231 | -4/Factory | Allies destroyed B-86 Titan 44523 | -4/Factory | Identified exit to Upper Caves 44523 | -4/Factory | Central database locked down 44788 | -4/Factory | Entered Upper Caves 44789 | -4/Upper Caves | Identified exit to Upper Caves 45840 | -4/Upper Caves | Learned location of Testing (-3) 45850 | -4/Upper Caves | Learned location of 1 exit from Research 45850 | -4/Upper Caves | Spotted B-86 Titan 45866 | -4/Upper Caves | Destroyed B-86 Titan 47379 | -4/Upper Caves | Attracted the attention of an 0b10 checkpoint 47470 | -4/Upper Caves | Entered another Upper Caves area 47501 | -4/Upper Caves | Encountered a Warlord checkpoint 47747 | -4/Upper Caves | Discovered new exit (range 9) 47778 | -4/Upper Caves | Spotted B-86 Titan 48615 | -4/Upper Caves | Learned Research stockpile data 48889 | -4/Upper Caves | Discovered new exit (range 2) 49297 | -4/Upper Caves | Entered Zhirov 49297 | -4/Zhirov | Discovered new exit (range 4) 49341 | -4/Zhirov | Met Zhirov 49386 | -4/Zhirov | Learned location of Quarantine (-2) 49408 | -4/Zhirov | Zhirov requested help retrieving the SGEMP Prototype 49586 | -4/Zhirov | Found Alien Artifact 49852 | -4/Zhirov | Found Alien Artifact 49852 | -4/Zhirov | Identified Integrated Reactor 49852 | -4/Zhirov | Installed Integrated Reactor, increased core energy generation (+10) 50187 | -4/Zhirov | Entered Proximity Caves 51286 | -3/Proximity Caves | Encountered an infested base 53006 | -3/Proximity Caves | Discovered new exit (range 8) 53054 | -3/Proximity Caves | Entered Research 53054 | -3/Research | Evolved 2 slots: Power x1, Utility x1 53055 | -3/Research | Identified exit to Testing 53103 | -3/Research | Identified exit to Research 53156 | -3/Research | Spotted B-86 Titan 53254 | -3/Research | Revision forces began assault on 0b10 53312 | -3/Research | Met up with Revision 17++ 53404 | -3/Research | Identified EMDS 53404 | -3/Research | Identified Transdimensional Reconstructor 53490 | -3/Research | Discovered exit to Testing (range 15) 53525 | -3/Research | Found Prototype Processor 53545 | -3/Research | Identified Spectral Analyzer 53597 | -3/Research | Lost 3 allies 53678 | -3/Research | Found Unknown Device 53678 | -3/Research | Identified Quantum Capacitor 53715 | -3/Research | Spotted B-86 Titan 53754 | -3/Research | Research terminal network offline 54259 | -3/Research | Spotted Striker 54276 | -3/Research | Destroyed Striker 54302 | -3/Research | Destroyed 7 combat bots 54554 | -3/Research | Build established: Golem 54838 | -3/Research | Entered Testing 54941 | -3/Testing | Found Prototype Energy Cannon 54941 | -3/Testing | Identified Potential Cannon 54961 | -3/Testing | Found Potential Cannon 55041 | -3/Testing | Found Prototype Energy Cannon 55041 | -3/Testing | Identified Hpw. Disruptor Cannon 55487 | -3/Testing | Found Prototype Leg 55487 | -3/Testing | Identified Myomer Exoskeleton 55847 | -3/Testing | Found Prototype Device 55872 | -3/Testing | Repaired Centrium Heavy Treads? 55914 | -3/Testing | Found Prototype Launcher 56060 | -3/Testing | Discovered exit to Research (range 8) 56129 | -3/Testing | Destroyed 7 combat bots 56267 | -3/Testing | Repaired Broken Com. HERF Cannon? 56781 | -3/Testing | Found Prototype Energy Cannon 56781 | -3/Testing | Identified Cld. Nova Cannon 56959 | -3/Testing | Learned Quarantine trap positions 57040 | -3/Testing | Learned location of 1 exit from Armory 57148 | -3/Testing | Scanned by Researcher 57888 | -3/Testing | System corruption reached 10% 57889 | -3/Testing | Entered Research 57889 | -2/Research | Evolved 2 slots: Propulsion x2 57969 | -2/Research | Found Prototype Device 57973 | -2/Research | Found Prototype Device 57977 | -2/Research | Found Prototype Device 57980 | -2/Research | Found Prototype Device 57984 | -2/Research | Found Prototype Device 58004 | -2/Research | Identified Exp. Transmission Jammer 58445 | -2/Research | Build established: Scavenger-Gunner 58539 | -2/Research | Found Prototype Device 58542 | -2/Research | Identified Exp. Thermal Shield 58578 | -2/Research | Identified exit to Quarantine 59474 | -2/Research | Entered Quarantine 59475 | -2/Quarantine | Loaded intel: 8 trap records 59544 | -2/Quarantine | Cryocooling Duct disabled 59559 | -2/Quarantine | Ambient heat levels rising (+20) 59559 | -2/Quarantine | Non-combat units ordered to evacuate 59630 | -2/Quarantine | Found Alien Artifact 59630 | -2/Quarantine | Identified Core Reset Matrix 59630 | -2/Quarantine | Identified Exp. Transmission Jammer 59630 | -2/Quarantine | Used Core Reset Matrix 59634 | -2/Quarantine | Detected hypermatrix surge 59634 | -2/Quarantine | Sensed 11 artifacts in vicinity 60003 | -2/Quarantine | Found Dimensional Node Initializer 60020 | -2/Quarantine | Found Hpw. Transdimensional Reconstructor 60400 | -2/Quarantine | Found Subatomic Replicator 60513 | -2/Quarantine | Found Sigix Broadsword 60659 | -2/Quarantine | Spotted Fortress 60807 | -2/Quarantine | Build established: Scavenger-Mutant 60827 | -2/Quarantine | Discovered new exit (range 5) 60834 | -2/Quarantine | Identified exit to Section 7 61049 | -2/Quarantine | Entered Section 7 61050 | -2/Section 7 | Sensed 28 artifacts in vicinity 61363 | -2/Section 7 | Destroyed 16 combat bots 61363 | -2/Section 7 | Warped through subspace 61410 | -2/Section 7 | Found Integrated Mediator 61410 | -2/Section 7 | Installed Integrated Mediator, increased core attachment efficiency 61465 | -2/Section 7 | Spotted S7 Guard 61476 | -2/Section 7 | Destroyed S7 Guard 61508 | -2/Section 7 | Found Corrupted Prototype Protection 61508 | -2/Section 7 | Identified Hvy. Regenerative Plating 61548 | -2/Section 7 | Spotted S7 Guard 61554 | -2/Section 7 | Found Integrated Thermoelectric Network 61554 | -2/Section 7 | Installed Integrated Thermoelectric Network, gained heat-energy exchange potential 61622 | -2/Section 7 | Destroyed S7 Guard 61692 | -2/Section 7 | Found Spacefold Activator 61718 | -2/Section 7 | Found Prototype Processor 61743 | -2/Section 7 | Found Prototype Device 61755 | -2/Section 7 | Identified Exp. Thermal Shield 61757 | -2/Section 7 | Identified Exp. Targeting Computer 61782 | -2/Section 7 | Spotted S7 Guard 61800 | -2/Section 7 | Destroyed S7 Guard 61834 | -2/Section 7 | Discovered new exit (range 8) 61843 | -2/Section 7 | Identified exit to Access 61847 | -2/Section 7 | Initialized slip node 62065 | -2/Section 7 | Repaired Centrium Heavy Treads? 62291 | -2/Section 7 | Found Transdimensional Reconstructor 62296 | -2/Section 7 | Found Transdimensional Reconstructor 62451 | -2/Section 7 | Found LRC Insulator 62451 | -2/Section 7 | Installed LRC Insulator, gained EM resistance (25) 62462 | -2/Section 7 | Found LRC Inertial Stabilizer 62462 | -2/Section 7 | Installed LRC Inertial Stabilizer, increased mass support (+10) 62465 | -2/Section 7 | Found LRC Matter Compressor 62465 | -2/Section 7 | Installed LRC Matter Compressor, increased matter storage capacity (+125) 62549 | -2/Section 7 | First assault squad dispatched 62678 | -2/Section 7 | Build established: Alien-Mutant 62747 | -2/Section 7 | Warped through subspace to slip node 62753 | -2/Section 7 | Entered Access 62753 | -1/Access | Evolved 2 slots: Power x1, Utility x1 63003 | -1/Access | First assault squad dispatched 63605 | -1/Access | Build established: Generator-Tank 64120 | -1/Access | High security lockdown imminent 64144 | -1/Access | Destroyed 9 combat bots 64200 | -1/Access | High security lockdown engaged 64337 | -1/Access | Destroyed 10 combat bots 64444 | -1/Access | Destroyed 13 combat bots 64504 | -1/Access | Spotted Striker 64504 | -1/Access | Spotted Striker 64509 | -1/Access | Destroyed Striker 64511 | -1/Access | Spotted Investigator 64518 | -1/Access | Destroyed Investigator 64521 | -1/Access | Destroyed Striker 64534 | -1/Access | Spotted Executioner 64534 | -1/Access | Spotted Executioner 64535 | -1/Access | Destroyed Executioner 64535 | -1/Access | Destroyed Executioner 64557 | -1/Access | Destroyed 15 combat bots 64588 | -1/Access | Spotted Executioner 64588 | -1/Access | Spotted Striker 64588 | -1/Access | Spotted Executioner 64591 | -1/Access | Destroyed Executioner 64591 | -1/Access | Destroyed Striker 64591 | -1/Access | Destroyed Executioner 64650 | -1/Access | Spotted Striker 64650 | -1/Access | Destroyed Striker 64660 | -1/Access | Spotted Executioner 64662 | -1/Access | Destroyed Executioner 64671 | -1/Access | Destroyed Executioner 64693 | -1/Access | Destroyed 13 combat bots 64729 | -1/Access | Spotted Executioner 64741 | -1/Access | Destroyed Executioner 64757 | -1/Access | Spotted Executioner 64760 | -1/Access | Spotted Executioner 64766 | -1/Access | Spotted Executioner 64766 | -1/Access | Spotted Striker 64766 | -1/Access | Spotted Striker 64770 | -1/Access | Destroyed Striker 64770 | -1/Access | Destroyed Striker 64770 | -1/Access | Destroyed Executioner 64780 | -1/Access | Destroyed Executioner 64784 | -1/Access | Destroyed Executioner 64819 | -1/Access | Destroyed 20 combat bots 64832 | -1/Access | Sterilization system engaged 64870 | -1/Access | Destroyed Striker 64871 | -1/Access | Spotted Striker 64884 | -1/Access | Destroyed Striker 64909 | -1/Access | Destroyed 10 combat bots 65132 | -1/Access | Ambient heat levels rising (+10) 65282 | -1/Access | Ambient heat levels rising (+10) 65432 | -1/Access | Ambient heat levels rising (+10) 65567 | -1/Access | Assembled infested ambush trap array 65582 | -1/Access | Ambient heat levels rising (+10) 65606 | -1/Access | Spotted B-99 Colossus 65732 | -1/Access | Ambient heat levels rising (+10) 65737 | -1/Access | Lost 13 allies 65785 | -1/Access | Build established: Generator-Gunner 65882 | -1/Access | Ambient heat levels rising (+10) 66032 | -1/Access | Ambient heat levels rising (+10) 66182 | -1/Access | Ambient heat levels rising (+10) 66332 | -1/Access | Ambient heat levels rising (+10) 66482 | -1/Access | Ambient heat levels rising (+10) 66632 | -1/Access | Ambient heat levels rising (+10) 66782 | -1/Access | Ambient heat levels rising (+10) 66932 | -1/Access | Ambient heat levels rising (+10) 67082 | -1/Access | Ambient heat levels rising (+10) 67232 | -1/Access | Ambient heat levels rising (+10) 67382 | -1/Access | Ambient heat levels rising (+10) 67532 | -1/Access | Ambient heat levels rising (+10) 67682 | -1/Access | Ambient heat levels rising (+10) 67832 | -1/Access | Ambient heat levels rising (+10) 67982 | -1/Access | Ambient heat levels rising (+10) 68132 | -1/Access | Ambient heat levels rising (+10) 68282 | -1/Access | Ambient heat levels rising (+10) 68432 | -1/Access | Ambient heat levels rising (+10) 68476 | -1/Access | Discovered new exit (range 3) 68481 | -1/Access | Identified exit to Command 68582 | -1/Access | Ambient heat levels rising (+10) 68732 | -1/Access | Ambient heat levels rising (+10) 68882 | -1/Access | Ambient heat levels rising (+10) 68962 | -1/Access | Entered Command 69220 | -1/Command | Spotted B-99 Colossus 69240 | -1/Command | Spotted Executioner 69240 | -1/Command | Spotted Striker 69243 | -1/Command | Spotted Executioner 69245 | -1/Command | Spotted Alpha 7 69247 | -1/Command | Destroyed Alpha 7 69257 | -1/Command | Spotted Alpha 7 69257 | -1/Command | Destroyed Striker 69257 | -1/Command | Spotted Striker 69258 | -1/Command | First assault squad dispatched 69262 | -1/Command | Destroyed Executioner 69269 | -1/Command | Destroyed Alpha 7 69269 | -1/Command | Destroyed Executioner 69271 | -1/Command | Destroyed Striker 69280 | -1/Command | Spotted Executioner 69282 | -1/Command | Spotted Executioner 69283 | -1/Command | Incoming assault squad redirected 69284 | -1/Command | Destroyed Executioner 69286 | -1/Command | Destroyed Executioner 69288 | -1/Command | High security lockdown imminent 69306 | -1/Command | Destroyed B-99 Colossus 69327 | -1/Command | Spotted B-99 Colossus 69344 | -1/Command | Destroyed 21 combat bots 69361 | -1/Command | Spotted B-99 Colossus 69368 | -1/Command | High security lockdown engaged 69499 | -1/Command | Destroyed 17 combat bots 69562 | -1/Command | Spotted Investigator 69566 | -1/Command | Destroyed Investigator 69593 | -1/Command | Build established: Alien-Mutant 69635 | -1/Command | Destroyed 19 combat bots 69693 | -1/Command | Spotted Executioner 69693 | -1/Command | Spotted Executioner 69693 | -1/Command | Spotted Striker 69714 | -1/Command | Destroyed Executioner 69737 | -1/Command | Destroyed Striker 69748 | -1/Command | Destroyed Executioner 69761 | -1/Command | Lost 3 parts (2p1u) 69769 | -1/Command | Destroyed 25 combat bots 69903 | -1/Command | Spotted Striker 69906 | -1/Command | Destroyed Striker 69910 | -1/Command | Spotted Executioner 69912 | -1/Command | Spotted Striker 69912 | -1/Command | Spotted Striker 69920 | -1/Command | System corruption reached 10% 69924 | -1/Command | Destroyed Executioner 69941 | -1/Command | Destroyed Striker 69955 | -1/Command | Destroyed Striker 69977 | -1/Command | Lost 6 parts (2p2n2u) 69993 | -1/Command | Destroyed 23 combat bots 70138 | -1/Command | Used Subatomic Replicator to create Supercharged TR 70141 | -1/Command | Warped through subspace to slip node 70141 | -1/Command | Discovered new exit (range 6) 70156 | -1/Command | Entered Access_0 70157 | -1/Access_0 | Sensed 4 artifacts in vicinity 70159 | -1/Access_0 | Met Architect 70169 | -1/Access_0 | Architect warped through subspace 70178 | -1/Access_0 | Destroyed A8 70224 | -1/Access_0 | Core integrity fell below 50% 70226 | -1/Access_0 | Architect warped through subspace 70233 | -1/Access_0 | Found Prototype Processor 70233 | -1/Access_0 | Identified Exp. Core Analyzer 70255 | -1/Access_0 | Architect warped through subspace 70282 | -1/Access_0 | Warped through subspace to slip node 70282 | -1/Access_0 | Discovered new exit (range 8) 70294 | *** | Heading to fleet! Last Messages --------------- 70258_ Acquired Sigix Broadsword. 70262_ Dropped Potential Cannon. 70264_ Acquired Potential Cannon. 70272_ System corrupted: IFF burst signal emitted. 70274_ The unstable cave ceiling collapses. 70276_ Quantum Shear penetrates Wall. 70276_ Dropped Sigix Broadsword. 70278_ Acquired Sigix Broadsword. 70279_ Penetrated by Quantum Shear. 70279_ Quantum Shear penetrates Wall. 70280_ Asb. Flux Generator destroyed. 70280_ Destroyed Asb. Flux Generator. 70281_ Penetrated by Quantum Shear. 70282_ Warped through subspace, drawn to slip node. 70282_ EXIT=FOUND 70283_ A0_RES: I have more important things to do than play hide-and-seek. Deal with this piece of junk if it returns. 70292_ System corrupted: Energy discharge (-430). [Achievement: Death Machine] [Achievement: Superachiever] Map ----- +----------------------------------------------------+ | | | | | | | | | | | | | | | | | | | | | | | | | | | | | | | | | ?????????????????????????????????????????????????? | | ?????????????????????????????????????????????????? | | ?????????????????????????????????????????????????? | | ?????????????????????????????????????????????????? | | ?????????????????????????????????????????????????? | | ?????????????????????????????????????????????????? | | ????????????????????????###??????????????????????? | | ???????????????????????## ##?????????????????????? | | ???????????????????????# #?????????????????????? | | ???????????????????????# @ #?????????????????????? | | ??????????????????????## #?????????????????????? | | ??????????????????????# #?????????????????????? | | ??????????????????????# ##?????????????????????? | | ??????????????????????## #?????????????????????? | | ??????????????????????# #?????????????????????? | | ??????????????????????# ##?????????????????????? | | ??????????????????????# < #?????????????????????? | | ??????????????????????# ##?????????????????????? | | ??????????????????????## #??????????????????????? | | ???????????????????????####??????????????????????? | | ?????????????????????????????????????????????????? | | ?????????????????????????????????????????????????? | | ?????????????????????????????????????????????????? | | ?????????????????????????????????????????????????? | | ?????????????????????????????????????????????????? | | ?????????????????????????????????????????????????? | | ?????????????????????????????????????????????????? | | ?????????????????????????????????????????????????? | | ?????????????????????????????????????????????????? | | ?????????????????????????????????????????????????? | | ?????????????????????????????????????????????????? | | ?????????????????????????????????????????????????? | | ?????????????????????????????????????????????????? | | ?????????????????????????????????????????????????? | +----------------------------------------------------+ Best States ------------- Heat Dissipation 151 Energy Generation 99 Energy Capacity 2350 Matter Stores 425 Matter Capacity 425 Sight Range 24 Robot Scan Range 18 Terrain Scan Range 16 Terrain Scan Density 10 Jamming Range 22 Additional Mass Support 20 Corruption Block 15 Armor Coverage 2050 Resistance: KI 30 Resistance: TH 15 Resistance: EX 25 Resistance: EM 100 Resistance: I 15 Resistance: S 15 Resistance: P 15 Core Shielding 20 Power Shielding 33 Utility Shielding 90 Weapon Shielding 100 Weapon Cycling 25 Phase Shifting 8 Evasion (%) 50 Targeting Accuracy 28 Launcher Accuracy 20 Target Analysis 5 Core Analysis 8 Recoil Reduction 6 Particle Charging 30 Kinecelleration 30 Offensive Hacking 24 Defensive Hacking 11 Authchip Count 2 Item Schematics ----------------- Imp. Lightning Gun | -2/Section 7 | Archive Centrium Light Armor Plating | -2/Section 7 | Archive Exp. Signal Interpreter | -2/Section 7 | Archive Robot Schematics ------------------ A-02 Transporter | -2/Section 7 | Archive Fabricated ------------ Huge Storage Unit | x1 | -6/Factory Weapon Mount | x2 | -4/Factory Adv. Hardlight Generator | x2 | -4/Factory | Preloaded Alien Tech Used ----------------- Integrated Reactor Core Reset Matrix Sigix Broadsword High-powered Transdimensional Reconstructor Integrated Mediator Integrated Thermoelectric Network Spacefold Activator Dimensional Node Initializer LRC Insulator LRC Inertial Stabilizer LRC Matter Compressor Transdimensional Reconstructor Subatomic Replicator Supercharged TR Achievements -------------- Behind The Curtain Death Machine Pyromaniac Superachiever Superinsulated Challenges ------------ None Game ------ Seed RingRefinerySuperbattery Manual? 0 Play Time 11:44:22 Cumulative 351.6 hours Start 2025.04.17 @ 19:12:13 End 2025.05.01 @ 23:24:38 Sessions 7 Manual Loads 0 Difficulty Rogue Special Mode None Game No. 403 Rogue 403 Adventurer 0 Explorer 0 Win Type 2 Total 11 Types 8/0/2/1/0/0/0/0/0 Lore% 74 Gallery% 87 Achievement% 76 Wizard Run 0 Options --------- Layout 0 ASCII 0 Keyboard 0 Movement Numpad Keybinds 0 Fullscreen 2 Font 18/X11 Map View 76x50 Zoom Use 0% Tactical HUD 1 Map Filters NONE Filters NONE Steam 1 RUN: 2a921a90-d00c-453b-a0a4-b1ebe6c11144